Workbook

Sheet Ejec desagregada (hidden)
A1: TIPO | B1: CTA | C1: SUBC | D1: OBJG | E1: ORD | F1: SORD | G1: ITEM | H1: S. ITEM | I1: CONCEPTO | J1: FUENTE | K1: SITUACION | L1: REC. | M1: APR. VIGENTE | N1: CDP | O1: APR. DISPONIBLE | P1: COMPROMISO | Q1: OBLIGACION | R1: ORDEN PAGO | S1: PAGOS | T1: % EJECUCIÓN COMPROMETIDA | U1: %EJECUCIÓN OBLIGADA
A2: A | I2: FUNCIONAMIENTO | J2: Nación | K2: CSF | L2: 10 | M2: 524311028598 | N2: 4.300941704e+11 | O2: 9.42168582e+10 | P2: 1.906518715e+11 | Q2: 4.739868048e+10 | R2: 4.689088825e+10 | S2: 4.688990559e+10 | T2: =+IFERROR(P2/M2,0) -> 0.3636236148 | U2: =+IFERROR(Q2/M2,0) -> 0.09040183763
A3: A | I3: FUNCIONAMIENTO | J3: Nación | K3: SSF | L3: 11 | M3: 1881077000 | N3: 0 | O3: 1881077000 | P3: 0 | Q3: 0 | R3: 0 | S3: 0 | T3: =+IFERROR(P3/M3,0) -> 0 | U3: =+IFERROR(Q3/M3,0) -> 0
A4: A | I4: FUNCIONAMIENTO | J4: Nación | K4: SSF | L4: 16 | M4: 153894590000 | N4: 34615358209 | O4: 119279231791 | P4: 2490112065 | Q4: 1583778284 | R4: 1080937251 | S4: 1080937251 | T4: 0.01618063419 | U4: 0.01029131878
A5: A | B5: 01 | I5: GASTOS DE PERSONAL | J5: Nación | K5: CSF | L5: 10 | M5: 237025946000 | N5: 236845946000 | O5: 180000000 | P5: 32024098322 | Q5: 32021983709 | R5: 32021983709 | S5: 32021983709 | T5: 0.1351079865 | U5: 0.1350990651
A6: A | B6: 01 | C6: 01 | I6: PLANTA DE PERSONAL PERMANENTE | J6: Nación | K6: CSF | L6: 10 | M6: 237025946000 | N6: 236845946000 | O6: 180000000 | P6: 32024098322 | Q6: 32021983709 | R6: 32021983709 | S6: 32021983709 | T6: 0.1351079865 | U6: 0.1350990651
A7: A | B7: 01 | C7: 01 | D7: 01 | I7: SALARIO | J7: Nación | K7: CSF | L7: 10 | M7: 162055267000 | N7: 162055267000 | O7: 0 | P7: 21729108109 | Q7: 21726993496 | R7: 21726993496 | S7: 21726993496 | T7: 0.1340845534 | U7: 0.1340715047
A8: A | B8: 01 | C8: 01 | D8: 01 | E8: 001 | I8: FACTORES SALARIALES COMUNES | J8: Nación | K8: CSF | L8: 10 | M8: 162055267000 | N8: 162055267000 | O8: 0 | P8: 21729108109 | Q8: 21726993496 | R8: 21726993496 | S8: 21726993496 | T8: 0.1340845534 | U8: 0.1340715047
A9: A | B9: 01 | C9: 01 | D9: 01 | E9: 001 | F9: 001 | I9: SUELDO BÁSICO | J9: Nación | K9: CSF | L9: 10 | M9: 125655267000 | N9: 125655267000 | O9: 0 | P9: 19257104071 | Q9: 19254989458 | R9: 19254989458 | S9: 19254989458 | T9: 0.1532534571 | U9: 0.1532366284
A10: A | B10: 01 | C10: 01 | D10: 01 | E10: 001 | F10: 002 | I10: GASTOS DE REPRESENTACIÓN | J10: Nación | K10: CSF | L10: 10 | M10: 4700000000 | N10: 4700000000 | O10: 0 | P10: 722702400 | Q10: 722702400 | R10: 722702400 | S10: 722702400 | T10: 0.1537664681 | U10: 0.1537664681
A11: A | B11: 01 | C11: 01 | D11: 01 | E11: 001 | F11: 006 | I11: PRIMA DE SERVICIO | J11: Nación | K11: CSF | L11: 10 | M11: 6500000000 | N11: 6500000000 | O11: 0 | P11: 39245499 | Q11: 39245499 | R11: 39245499 | S11: 39245499 | T11: 0.006037769077 | U11: 0.006037769077
A12: A | B12: 01 | C12: 01 | D12: 01 | E12: 001 | F12: 007 | I12: BONIFICACIÓN POR SERVICIOS PRESTADOS | J12: Nación | K12: CSF | L12: 10 | M12: 4500000000 | N12: 4500000000 | O12: 0 | P12: 979495315 | Q12: 979495315 | R12: 979495315 | S12: 979495315 | T12: 0.2176656256 | U12: 0.2176656256
A13: A | B13: 01 | C13: 01 | D13: 01 | E13: 001 | F13: 008 | I13: HORAS EXTRAS, DOMINICALES, FESTIVOS Y RECARGOS | J13: Nación | K13: CSF | L13: 10 | M13: 700000000 | N13: 700000000 | O13: 0 | P13: 27738937 | Q13: 27738937 | R13: 27738937 | S13: 27738937 | T13: 0.03962705286 | U13: 0.03962705286
A14: A | B14: 01 | C14: 01 | D14: 01 | E14: 001 | F14: 009 | I14: PRIMA DE NAVIDAD | J14: Nación | K14: CSF | L14: 10 | M14: 13500000000 | N14: 13500000000 | O14: 0 | P14: 7764113 | Q14: 7764113 | R14: 7764113 | S14: 7764113 | T14: 0.0005751194815 | U14: 0.0005751194815
A15: A | B15: 01 | C15: 01 | D15: 01 | E15: 001 | F15: 010 | I15: PRIMA DE VACACIONES | J15: Nación | K15: CSF | L15: 10 | M15: 6500000000 | N15: 6500000000 | O15: 0 | P15: 695057774 | Q15: 695057774 | R15: 695057774 | S15: 695057774 | T15: 0.1069319652 | U15: 0.1069319652
A16: A | B16: 01 | C16: 01 | D16: 02 | I16: CONTRIBUCIONES INHERENTES A LA NÓMINA | J16: Nación | K16: CSF | L16: 10 | M16: 60258109000 | N16: 60078109000 | O16: 180000000 | P16: 8495645543 | Q16: 8495645543 | R16: 8495645543 | S16: 8495645543 | T16: 0.1409875896 | U16: 0.1409875896
A17: A | B17: 01 | C17: 01 | D17: 02 | E17: 001 | I17: APORTES A LA SEGURIDAD SOCIAL EN PENSIONES | J17: Nación | K17: CSF | L17: 10 | M17: 17100000000 | N17: 16920000000 | O17: 180000000 | P17: 2953146300 | Q17: 2953146300 | R17: 2953146300 | S17: 2953146300 | T17: 0.172698614 | U17: 0.172698614
A18: A | B18: 01 | C18: 01 | D18: 02 | E18: 002 | I18: APORTES A LA SEGURIDAD SOCIAL EN SALUD | J18: Nación | K18: CSF | L18: 10 | M18: 12100000000 | N18: 12100000000 | O18: 0 | P18: 2096122700 | Q18: 2096122700 | R18: 2096122700 | S18: 2096122700 | T18: 0.173233281 | U18: 0.173233281
A19: A | B19: 01 | C19: 01 | D19: 02 | E19: 003 | I19: AUXILIO DE CESANTÍAS | J19: Nación | K19: CSF | L19: 10 | M19: 14158109000 | N19: 14158109000 | O19: 0 | P19: 1148890243 | Q19: 1148890243 | R19: 1148890243 | S19: 1148890243 | T19: 0.08114715341 | U19: 0.08114715341
A20: A | B20: 01 | C20: 01 | D20: 02 | E20: 004 | I20: APORTES A CAJAS DE COMPENSACIÓN FAMILIAR | J20: Nación | K20: CSF | L20: 10 | M20: 6800000000 | N20: 6800000000 | O20: 0 | P20: 920377200 | Q20: 920377200 | R20: 920377200 | S20: 920377200 | T20: 0.1353495882 | U20: 0.1353495882
A21: A | B21: 01 | C21: 01 | D21: 02 | E21: 005 | I21: APORTES GENERALES AL SISTEMA DE RIESGOS LABORALES | J21: Nación | K21: CSF | L21: 10 | M21: 1700000000 | N21: 1700000000 | O21: 0 | P21: 225987600 | Q21: 225987600 | R21: 225987600 | S21: 225987600 | T21: 0.1329338824 | U21: 0.1329338824
A22: A | B22: 01 | C22: 01 | D22: 02 | E22: 006 | I22: APORTES AL ICBF | J22: Nación | K22: CSF | L22: 10 | M22: 5000000000 | N22: 5000000000 | O22: 0 | P22: 690359100 | Q22: 690359100 | R22: 690359100 | S22: 690359100 | T22: 0.13807182 | U22: 0.13807182
A23: A | B23: 01 | C23: 01 | D23: 02 | E23: 007 | I23: APORTES AL SENA | J23: Nación | K23: CSF | L23: 10 | M23: 850000000 | N23: 850000000 | O23: 0 | P23: 115237700 | Q23: 115237700 | R23: 115237700 | S23: 115237700 | T23: 0.1355737647 | U23: 0.1355737647
A24: A | B24: 01 | C24: 01 | D24: 02 | E24: 008 | I24: APORTES A LA ESAP | J24: Nación | K24: CSF | L24: 10 | M24: 850000000 | N24: 850000000 | O24: 0 | P24: 115237700 | Q24: 115237700 | R24: 115237700 | S24: 115237700 | T24: 0.1355737647 | U24: 0.1355737647
A25: A | B25: 01 | C25: 01 | D25: 02 | E25: 009 | I25: APORTES A ESCUELAS INDUSTRIALES E INSTITUTOS TÉCNICOS | J25: Nación | K25: CSF | L25: 10 | M25: 1700000000 | N25: 1700000000 | O25: 0 | P25: 230287000 | Q25: 230287000 | R25: 230287000 | S25: 230287000 | T25: 0.1354629412 | U25: 0.1354629412
A26: A | B26: 01 | C26: 01 | D26: 03 | I26: REMUNERACIONES NO CONSTITUTIVAS DE FACTOR SALARIAL | J26: Nación | K26: CSF | L26: 10 | M26: 14712570000 | N26: 14712570000 | O26: 0 | P26: 1799344670 | Q26: 1799344670 | R26: 1799344670 | S26: 1799344670 | T26: 0.1222998205 | U26: 0.1222998205
A27: A | B27: 01 | C27: 01 | D27: 03 | E27: 001 | I27: PRESTACIONES SOCIALES SEGÚN DEFINICIÓN LEGAL | J27: Nación | K27: CSF | L27: 10 | M27: 9412570000 | N27: 9412570000 | O27: 0 | P27: 1018538005 | Q27: 1018538005 | R27: 1018538005 | S27: 1018538005 | T27: 0.1082104043 | U27: 0.1082104043
A28: A | B28: 01 | C28: 01 | D28: 03 | E28: 001 | F28: 001 | I28: VACACIONES | J28: Nación | K28: CSF | L28: 10 | M28: 8602570000 | N28: 8602570000 | O28: 0 | P28: 889578905 | Q28: 889578905 | R28: 889578905 | S28: 889578905 | T28: 0.1034085052 | U28: 0.1034085052
A29: A | B29: 01 | C29: 01 | D29: 03 | E29: 001 | F29: 002 | I29: INDEMNIZACIÓN POR VACACIONES | J29: Nación | K29: CSF | L29: 10 | M29: 810000000 | N29: 810000000 | O29: 0 | P29: 128959100 | Q29: 128959100 | R29: 128959100 | S29: 128959100 | T29: 0.1592087654 | U29: 0.1592087654
A30: A | B30: 01 | C30: 01 | D30: 03 | E30: 002 | I30: PRIMA TÉCNICA NO SALARIAL | J30: Nación | K30: CSF | L30: 10 | M30: 2200000000 | N30: 2200000000 | O30: 0 | P30: 310771934 | Q30: 310771934 | R30: 310771934 | S30: 310771934 | T30: 0.14125997 | U30: 0.14125997
A31: A | B31: 01 | C31: 01 | D31: 03 | E31: 082 | I31: PRIMA ESPECIAL DE SERVICIOS | J31: Nación | K31: CSF | L31: 10 | M31: 3100000000 | N31: 3100000000 | O31: 0 | P31: 470034731 | Q31: 470034731 | R31: 470034731 | S31: 470034731 | T31: 0.1516241068 | U31: 0.1516241068
A32: A | B32: 02 | I32: ADQUISICIÓN DE BIENES Y SERVICIOS | J32: Nación | K32: CSF | L32: 10 | M32: 52344273598 | N32: 4.298419053e+10 | O32: 9360083069 | P32: 2.656893309e+10 | Q32: 1178649736 | R32: 1131507673 | S32: 1130525013 | T32: 0.50758051 | U32: 0.02251726226
A33: A | B33: 02 | C33: 01 | I33: ADQUISICIÓN DE ACTIVOS NO FINANCIEROS | J33: Nación | K33: CSF | L33: 10 | M33: 920000000 | N33: 920000000 | O33: 0 | P33: 120000000 | Q33: 0 | R33: 0 | S33: 0 | T33: 0.1304347826 | U33: 0
A34: A | B34: 02 | C34: 01 | D34: 01 | I34: ACTIVOS FIJOS | J34: Nación | K34: CSF | L34: 10 | M34: 920000000 | N34: 920000000 | O34: 0 | P34: 120000000 | Q34: 0 | R34: 0 | S34: 0 | T34: 0.1304347826 | U34: 0
A35: A | B35: 02 | C35: 01 | D35: 01 | E35: 004 | I35: MAQUINARIA Y EQUIPO | J35: Nación | K35: CSF | L35: 10 | M35: 800000000 | N35: 800000000 | O35: 0 | P35: 0 | Q35: 0 | R35: 0 | S35: 0 | T35: 0 | U35: 0
A36: A | B36: 02 | C36: 01 | D36: 01 | E36: 004 | F36: 009 | I36: EQUIPO DE TRANSPORTE | J36: Nación | K36: CSF | L36: 10 | M36: 800000000 | N36: 800000000 | O36: 0 | P36: 0 | Q36: 0 | R36: 0 | S36: 0 | T36: 0 | U36: 0
A37: A | B37: 02 | C37: 01 | D37: 01 | E37: 006 | I37: OTROS ACTIVOS FIJOS | J37: Nación | K37: CSF | L37: 10 | M37: 120000000 | N37: 120000000 | O37: 0 | P37: 120000000 | Q37: 0 | R37: 0 | S37: 0 | T37: 1 | U37: 0
A38: A | B38: 02 | C38: 01 | D38: 01 | E38: 006 | F38: 002 | I38: PRODUCTOS DE LA PROPIEDAD INTELECTUAL | J38: Nación | K38: CSF | L38: 10 | M38: 120000000 | N38: 120000000 | O38: 0 | P38: 120000000 | Q38: 0 | R38: 0 | S38: 0 | T38: 1 | U38: 0
A39: A | B39: 02 | C39: 02 | I39: ADQUISICIONES DIFERENTES DE ACTIVOS | J39: Nación | K39: CSF | L39: 10 | M39: 51424273598 | N39: 4.206419053e+10 | O39: 9360083069 | P39: 2.644893309e+10 | Q39: 1178649736 | R39: 1131507673 | S39: 1130525013 | T39: 0.5143277919 | U39: 0.02292010473
A40: A | B40: 02 | C40: 02 | D40: 01 | I40: MATERIALES Y SUMINISTROS | J40: Nación | K40: CSF | L40: 10 | M40: 4333355057 | N40: 3016459989 | O40: 1316895068 | P40: 2356922587 | Q40: 2000000 | R40: 2000000 | S40: 2000000 | T40: 0.5439024858 | U40: 0.0004615361478
A41: A | B41: 02 | C41: 02 | D41: 01 | E41: 002 | I41: PRODUCTOS ALIMENTICIOS, BEBIDAS Y TABACO; TEXTILES, PRENDAS DE VESTIR Y PRODUCTOS DE CUERO | J41: Nación | K41: CSF | L41: 10 | M41: 165000000 | N41: 65000000 | O41: 100000000 | P41: 0 | Q41: 0 | R41: 0 | S41: 0 | T41: 0 | U41: 0
A42: A | B42: 02 | C42: 02 | D42: 01 | E42: 002 | F42: 003 | I42: PRODUCTOS DE MOLINERÍA, ALMIDONES Y PRODUCTOS DERIVADOS DEL ALMIDÓN; OTROS PRODUCTOS ALIMENTICIOS | J42: Nación | K42: CSF | L42: 10 | M42: 100000000 | N42: 0 | O42: 100000000 | P42: 0 | Q42: 0 | R42: 0 | S42: 0 | T42: 0 | U42: 0
A43: A | B43: 02 | C43: 02 | D43: 01 | E43: 002 | F43: 007 | I43: ARTÍCULOS TEXTILES (EXCEPTO PRENDAS DE VESTIR) | J43: Nación | K43: CSF | L43: 10 | M43: 0 | N43: 0 | O43: 0 | P43: 0 | Q43: 0 | R43: 0 | S43: 0 | T43: 0 | U43: 0
A44: A | B44: 02 | C44: 02 | D44: 01 | E44: 002 | F44: 008 | I44: DOTACIÓN (PRENDAS DE VESTIR Y CALZADO) | J44: Nación | K44: CSF | L44: 10 | M44: 65000000 | N44: 65000000 | O44: 0 | P44: 0 | Q44: 0 | R44: 0 | S44: 0 | T44: 0 | U44: 0
A45: A | B45: 02 | C45: 02 | D45: 01 | E45: 003 | I45: OTROS BIENES TRANSPORTABLES (EXCEPTO PRODUCTOS METÁLICOS, MAQUINARIA Y EQUIPO) | J45: Nación | K45: CSF | L45: 10 | M45: 470855000 | N45: 185854932 | O45: 285000068 | P45: 17000000 | Q45: 2000000 | R45: 2000000 | S45: 2000000 | T45: 0.03610453324 | U45: 0.004247592146
A46: A | B46: 02 | C46: 02 | D46: 01 | E46: 003 | F46: 002 | I46: PASTA O PULPA, PAPEL Y PRODUCTOS DE PAPEL; IMPRESOS Y ARTÍCULOS RELACIONADOS | J46: Nación | K46: CSF | L46: 10 | M46: 115750000 | N46: 15750000 | O46: 100000000 | P46: 15750000 | Q46: 750000 | R46: 750000 | S46: 750000 | T46: 0.1360691145 | U46: 0.006479481641
A47: A | B47: 02 | C47: 02 | D47: 01 | E47: 003 | F47: 003 | I47: PRODUCTOS DE HORNOS DE COQUE; PRODUCTOS DE REFINACIÓN DE PETRÓLEO Y COMBUSTIBLE NUCLEAR | J47: Nación | K47: CSF | L47: 10 | M47: 100350000 | N47: 100350000 | O47: 0 | P47: 350000 | Q47: 350000 | R47: 350000 | S47: 350000 | T47: 0.003487792725 | U47: 0.003487792725
A48: A | B48: 02 | C48: 02 | D48: 01 | E48: 003 | F48: 005 | I48: OTROS PRODUCTOS QUÍMICOS; FIBRAS ARTIFICIALES (O FIBRAS INDUSTRIALES HECHAS POR EL HOMBRE) | J48: Nación | K48: CSF | L48: 10 | M48: 900000 | N48: 900000 | O48: 0 | P48: 900000 | Q48: 900000 | R48: 900000 | S48: 900000 | T48: 1 | U48: 1
A49: A | B49: 02 | C49: 02 | D49: 01 | E49: 003 | F49: 008 | I49: OTROS BIENES TRANSPORTABLES N.C.P. | J49: Nación | K49: CSF | L49: 10 | M49: 253855000 | N49: 68854932 | O49: 185000068 | P49: 0 | Q49: 0 | R49: 0 | S49: 0 | T49: 0 | U49: 0
A50: A | B50: 02 | C50: 02 | D50: 01 | E50: 004 | I50: PRODUCTOS METÁLICOS Y PAQUETES DE SOFTWARE | J50: Nación | K50: CSF | L50: 10 | M50: 3697500057 | N50: 2765605057 | O50: 931895000 | P50: 2339922587 | Q50: 0 | R50: 0 | S50: 0 | T50: 0.6328390943 | U50: 0
A51: A | B51: 02 | C51: 02 | D51: 01 | E51: 004 | F51: 004 | I51: MAQUINARIA PARA USOS ESPECIALES | J51: Nación | K51: CSF | L51: 10 | M51: 26145000 | N51: 0 | O51: 26145000 | P51: 0 | Q51: 0 | R51: 0 | S51: 0 | T51: 0 | U51: 0
A52: A | B52: 02 | C52: 02 | D52: 01 | E52: 004 | F52: 005 | I52: MAQUINARIA DE OFICINA, CONTABILIDAD E INFORMÁTICA | J52: Nación | K52: CSF | L52: 10 | M52: 655750000 | N52: 0 | O52: 655750000 | P52: 0 | Q52: 0 | R52: 0 | S52: 0 | T52: 0 | U52: 0
A53: A | B53: 02 | C53: 02 | D53: 01 | E53: 004 | F53: 006 | I53: MAQUINARIA Y APARATOS ELÉCTRICOS | J53: Nación | K53: CSF | L53: 10 | M53: 100000000 | N53: 0 | O53: 100000000 | P53: 0 | Q53: 0 | R53: 0 | S53: 0 | T53: 0 | U53: 0
A54: A | B54: 02 | C54: 02 | D54: 01 | E54: 004 | F54: 007 | I54: EQUIPO Y APARATOS DE RADIO, TELEVISIÓN Y COMUNICACIONES | J54: Nación | K54: CSF | L54: 10 | M54: 2915605057 | N54: 2765605057 | O54: 150000000 | P54: 2339922587 | Q54: 0 | R54: 0 | S54: 0 | T54: 0.8025512858 | U54: 0
A55: A | B55: 02 | C55: 02 | D55: 02 | I55: ADQUISICIÓN DE SERVICIOS | J55: Nación | K55: CSF | L55: 10 | M55: 47090918541 | N55: 3.904773054e+10 | O55: 8043188001 | P55: 2.40920105e+10 | Q55: 1176649736 | R55: 1129507673 | S55: 1128525013 | T55: 0.5116062979 | U55: 0.02498676545
A56: A | B56: 02 | C56: 02 | D56: 02 | E56: 005 | I56: SERVICIOS DE LA CONSTRUCCIÓN | J56: Nación | K56: CSF | L56: 10 | M56: 7348700 | N56: 7348700 | O56: 0 | P56: 7348700 | Q56: 7348700 | R56: 7348700 | S56: 7348700 | T56: 1 | U56: 1
A57: A | B57: 02 | C57: 02 | D57: 02 | E57: 005 | F57: 004 | I57: SERVICIOS DE CONSTRUCCIÓN | J57: Nación | K57: CSF | L57: 10 | M57: 7348700 | N57: 7348700 | O57: 0 | P57: 7348700 | Q57: 7348700 | R57: 7348700 | S57: 7348700 | T57: 1 | U57: 1
A58: A | B58: 02 | C58: 02 | D58: 02 | E58: 006 | I58: SERVICIOS DE ALOJAMIENTO; SERVICIOS DE SUMINISTRO DE COMIDAS Y BEBIDAS; SERVICIOS DE TRANSPORTE; Y SERVICIOS DE DISTRIBUCIÓN DE ELECTRICIDAD, GAS Y AGUA | J58: Nación | K58: CSF | L58: 10 | M58: 5227513824 | N58: 1292153780 | O58: 3935360044 | P58: 521311851 | Q58: 236166428 | R58: 235299828 | S58: 234409545 | T58: 0.09972462409 | U58: 0.04517758077
A59: A | B59: 02 | C59: 02 | D59: 02 | E59: 006 | F59: 003 | I59: ALOJAMIENTO; SERVICIOS DE SUMINISTROS DE COMIDAS Y BEBIDAS | J59: Nación | K59: CSF | L59: 10 | M59: 289993824 | N59: 119993824 | O59: 170000000 | P59: 74240218 | Q59: 65274505 | R59: 65274505 | S59: 64384222 | T59: 0.2560062038 | U59: 0.2250892936
A60: A | B60: 02 | C60: 02 | D60: 02 | E60: 006 | F60: 004 | I60: SERVICIOS DE TRANSPORTE DE PASAJEROS | J60: Nación | K60: CSF | L60: 10 | M60: 1758920000 | N60: 222920000 | O60: 1536000000 | P60: 40028000 | Q60: 22328698 | R60: 22328698 | S60: 22328698 | T60: 0.02275714643 | U60: 0.01269455006
A61: A | B61: 02 | C61: 02 | D61: 02 | E61: 006 | F61: 007 | I61: SERVICIOS DE APOYO AL TRANSPORTE | J61: Nación | K61: CSF | L61: 10 | M61: 130000000 | N61: 102000000 | O61: 28000000 | P61: 33511000 | Q61: 11806184 | R61: 11646184 | S61: 11646184 | T61: 0.2577769231 | U61: 0.0908168
A62: A | B62: 02 | C62: 02 | D62: 02 | E62: 006 | F62: 008 | I62: SERVICIOS POSTALES Y DE MENSAJERÍA | J62: Nación | K62: CSF | L62: 10 | M62: 1733000000 | N62: 231639956 | O62: 1501360044 | P62: 231639956 | Q62: 100000 | R62: 100000 | S62: 100000 | T62: 0.1336641408 | U62: 5.77034045e-05
A63: A | B63: 02 | C63: 02 | D63: 02 | E63: 006 | F63: 009 | I63: SERVICIOS DE DISTRIBUCIÓN DE ELECTRICIDAD, GAS Y AGUA (POR CUENTA PROPIA) | J63: Nación | K63: CSF | L63: 10 | M63: 1315600000 | N63: 615600000 | O63: 700000000 | P63: 141892677 | Q63: 136657041 | R63: 135950441 | S63: 135950441 | T63: 0.1078539655 | U63: 0.1038743091
A64: A | B64: 02 | C64: 02 | D64: 02 | E64: 007 | I64: SERVICIOS FINANCIEROS Y SERVICIOS CONEXOS, SERVICIOS INMOBILIARIOS Y SERVICIOS DE LEASING | J64: Nación | K64: CSF | L64: 10 | M64: 2900507314 | N64: 1888688237 | O64: 1011819077 | P64: 1632370291 | Q64: 213868433.3 | R64: 175173568.7 | S64: 175173568.7 | T64: 0.5627878555 | U64: 0.07373483675
A65: A | B65: 02 | C65: 02 | D65: 02 | E65: 007 | F65: 001 | I65: SERVICIOS FINANCIEROS Y SERVICIOS CONEXOS | J65: Nación | K65: CSF | L65: 10 | M65: 275000000 | N65: 257913616 | O65: 17086384 | P65: 257913616 | Q65: 0 | R65: 0 | S65: 0 | T65: 0.9378676945 | U65: 0
A66: A | B66: 02 | C66: 02 | D66: 02 | E66: 007 | F66: 002 | I66: SERVICIOS INMOBILIARIOS | J66: Nación | K66: CSF | L66: 10 | M66: 2197407314 | N66: 1266932202 | O66: 930475111.8 | P66: 1010614256 | Q66: 213868433.3 | R66: 175173568.7 | S66: 175173568.7 | T66: 0.45991212 | U66: 0.0973276242
A67: A | B67: 02 | C67: 02 | D67: 02 | E67: 007 | F67: 003 | I67: SERVICIOS DE ARRENDAMIENTO O ALQUILER SIN OPERARIO | J67: Nación | K67: CSF | L67: 10 | M67: 428100000 | N67: 363842419 | O67: 64257581 | P67: 363842419 | Q67: 0 | R67: 0 | S67: 0 | T67: =+IFERROR(P67/M67,0) -> 0.8499005349 | U67: =+IFERROR(Q67/M67,0) -> 0
A68: A | B68: 02 | C68: 02 | D68: 02 | E68: 008 | I68: SERVICIOS PRESTADOS A LAS EMPRESAS Y SERVICIOS DE PRODUCCIÓN | J68: Nación | K68: CSF | L68: 10 | M68: 31184495803 | N68: 30359243234 | O68: 825252569 | P68: 16983886274 | Q68: 512265459.1 | R68: 512265459.1 | S68: 512265459.1 | T68: 0.5446259699 | U68: 0.01642692774
A69: A | B69: 02 | C69: 02 | D69: 02 | E69: 008 | F69: 002 | I69: SERVICIOS JURÍDICOS Y CONTABLES | J69: Nación | K69: CSF | L69: 10 | M69: 7904300000 | N69: 7711862500 | O69: 192437500 | P69: 6177446666 | Q69: 208439997.7 | R69: 208439997.7 | S69: 208439997.7 | T69: 0.7815298845 | U69: 0.02637045629
A70: A | B70: 02 | C70: 02 | D70: 02 | E70: 008 | F70: 003 | I70: OTROS SERVICIOS PROFESIONALES, CIENTÍFICOS Y TÉCNICOS | J70: Nación | K70: CSF | L70: 10 | M70: 9237661359 | N70: 9204200000 | O70: 33461359 | P70: 6178283328 | Q70: 74056665.33 | R70: 74056665.33 | S70: 74056665.33 | T70: 0.6688146586 | U70: 0.008016819675
A71: A | B71: 02 | C71: 02 | D71: 02 | E71: 008 | F71: 004 | I71: SERVICIOS DE TELECOMUNICACIONES, TRANSMISIÓN Y SUMINISTRO DE INFORMACIÓN | J71: Nación | K71: CSF | L71: 10 | M71: 3078750000 | N71: 3076714315 | O71: 2035685 | P71: 1574145606 | Q71: 102370111 | R71: 102370111 | S71: 102370111 | T71: 0.5112937413 | U71: 0.03325054358
A72: A | B72: 02 | C72: 02 | D72: 02 | E72: 008 | F72: 005 | I72: SERVICIOS DE SOPORTE | J72: Nación | K72: CSF | L72: 10 | M72: 9091374868 | N72: 8983056843 | O72: 108318025 | P72: 2873721660 | Q72: 250000 | R72: 250000 | S72: 250000 | T72: 0.3160931874 | U72: 2.74985911e-05
A73: A | B73: 02 | C73: 02 | D73: 02 | E73: 008 | F73: 007 | I73: SERVICIOS DE MANTENIMIENTO, REPARACIÓN E INSTALACIÓN (EXCEPTO SERVICIOS DE CONSTRUCCIÓN) | J73: Nación | K73: CSF | L73: 10 | M73: 1872409576 | N73: 1383409576 | O73: 489000000 | P73: 180289014 | Q73: 127148685 | R73: 127148685 | S73: 127148685 | T73: 0.09628716725 | U73: 0.0679064488
A74: A | B74: 02 | C74: 02 | D74: 02 | E74: 009 | I74: SERVICIOS PARA LA COMUNIDAD, SOCIALES Y PERSONALES | J74: Nación | K74: CSF | L74: 10 | M74: 6213052900 | N74: 4711296589 | O74: 1501756311 | P74: 4528396018 | Q74: 32469889 | R74: 32469889 | S74: 32469889 | T74: 0.7288519977 | U74: 0.005226076379
A75: A | B75: 02 | C75: 02 | D75: 02 | E75: 009 | F75: 003 | I75: SERVICIOS PARA EL CUIDADO DE LA SALUD HUMANA Y SERVICIOS SOCIALES | J75: Nación | K75: CSF | L75: 10 | M75: 350000000 | N75: 105243689 | O75: 244756311 | P75: 105243689 | Q75: 0 | R75: 0 | S75: 0 | T75: 0.3006962543 | U75: 0
A76: A | B76: 02 | C76: 02 | D76: 02 | E76: 009 | F76: 004 | I76: SERVICIOS DE ALCANTARILLADO, RECOLECCIÓN, TRATAMIENTO Y DISPOSICIÓN DE DESECHOS Y OTROS SERVICIOS DE SANEAMIENTO AMBIENTAL | J76: Nación | K76: CSF | L76: 10 | M76: 312355000 | N76: 212355000 | O76: 100000000 | P76: 29454429 | Q76: 28771989 | R76: 28771989 | S76: 28771989 | T76: 0.09429792704 | U76: 0.09211310528
A77: A | B77: 02 | C77: 02 | D77: 02 | E77: 009 | F77: 007 | I77: OTROS SERVICIOS | J77: Nación | K77: CSF | L77: 10 | M77: 5550697900 | N77: 4393697900 | O77: 1157000000 | P77: 4393697900 | Q77: 3697900 | R77: 3697900 | S77: 3697900 | T77: 0.7915577427 | U77: 0.0006662045146
A78: A | B78: 02 | C78: 02 | D78: 02 | E78: 010 | I78: VIÁTICOS DE LOS FUNCIONARIOS EN COMISIÓN | J78: Nación | K78: CSF | L78: 10 | M78: 1558000000 | N78: 789000000 | O78: 769000000 | P78: 418697366 | Q78: 174530827 | R78: 166950228 | S78: 166857851 | T78: 0.2687402863 | U78: 0.1120223537
A79: A | B79: 03 | I79: TRANSFERENCIAS CORRIENTES | J79: Nación | K79: CSF | L79: 10 | M79: 234455809000 | N79: 1.497790339e+11 | O79: 8.467677513e+10 | P79: 1.319229025e+11 | Q79: 1.406210941e+10 | R79: 1.360145925e+10 | S79: 1.360145925e+10 | T79: 0.5626770478 | U79: 0.05997765408
A80: A | B80: 03 | I80: TRANSFERENCIAS CORRIENTES | J80: Nación | K80: SSF | L80: 16 | M80: 153894590000 | N80: 34615358209 | O80: 119279231791 | P80: 2490112065 | Q80: 1583778284 | R80: 1080937251 | S80: 1080937251 | T80: 0.01618063419 | U80: 0.01029131878
A81: A | B81: 03 | C81: 03 | I81: A ENTIDADES DEL GOBIERNO | J81: Nación | K81: CSF | L81: 10 | M81: 232805124000 | N81: 1.481283489e+11 | O81: 8.467677513e+10 | P81: 1.31660177e+11 | Q81: 1.379938393e+10 | R81: 1.333873377e+10 | S81: 1.333873377e+10 | T81: 0.5655381407 | U81: 0.05927439953
A82: A | B82: 03 | C82: 03 | I82: A ENTIDADES DEL GOBIERNO | J82: Nación | K82: SSF | L82: 16 | M82: 153894590000 | N82: 34615358209 | O82: 119279231791 | P82: 2490112065 | Q82: 1583778284 | R82: 1080937251 | S82: 1080937251 | T82: 0.01618063419 | U82: 0.01029131878
A83: A | B83: 03 | C83: 03 | D83: 01 | I83: A ÓRGANOS DEL PGN | J83: Nación | K83: CSF | L83: 10 | M83: 232805124000 | N83: 1.481283489e+11 | O83: 8.467677513e+10 | P83: 1.31660177e+11 | Q83: 1.379938393e+10 | R83: 1.333873377e+10 | S83: 1.333873377e+10 | T83: 0.5655381407 | U83: 0.05927439953
A84: A | B84: 03 | C84: 03 | D84: 01 | I84: A ÓRGANOS DEL PGN | J84: Nación | K84: SSF | L84: 16 | M84: 153894590000 | N84: 34615358209 | O84: 119279231791 | P84: 2490112065 | Q84: 1583778284 | R84: 1080937251 | S84: 1080937251 | T84: 0.01618063419 | U84: 0.01029131878
A85: A | B85: 03 | C85: 03 | D85: 01 | E85: 007 | I85: DEFENSORÍA PÚBLICA (LEY 24 DE 1992) | J85: Nación | K85: CSF | L85: 10 | M85: 232478124000 | N85: 1.478513678e+11 | O85: 8.462675621e+10 | P85: 1.314462533e+11 | Q85: 1.379938393e+10 | R85: 1.333873377e+10 | S85: 1.333873377e+10 | T85: 0.5654134292 | U85: 0.05935777395
A86: A | B86: 03 | C86: 03 | D86: 01 | E86: 008 | I86: FONDO PARA LA DEFENSA DE LOS DERECHOS E INTERESES COLECTIVOS -LEY 472 DE 1998. | J86: Nación | K86: SSF | L86: 16 | M86: 153325000000 | N86: 34615358209 | O86: 118709641791 | P86: 2490112065 | Q86: 1583778284 | R86: 1080937251 | S86: 1080937251 | T86: 0.01624074394 | U86: 0.0103295502
A87: A | B87: 03 | C87: 03 | D87: 01 | E87: 061 | I87: FONDO ESPECIAL COMISIÓN NACIONAL DE BÚSQUEDA (ART. 18 LEY 971 DE 2005) | J87: Nación | K87: SSF | L87: 16 | M87: 569590000 | N87: 0 | O87: 569590000 | P87: 0 | Q87: 0 | R87: 0 | S87: 0 | T87: 0 | U87: 0
A88: A | B88: 03 | C88: 03 | D88: 01 | E88: 068 | I88: COMISIÓN DE BÚSQUEDA DE PERSONAS DESAPARECIDAS LEY 589 DE 2000 | J88: Nación | K88: CSF | L88: 10 | M88: 327000000 | N88: 276981078 | O88: 50018922 | P88: 213923677 | Q88: 0 | R88: 0 | S88: 0 | T88: 0.6542008471 | U88: 0
A89: A | B89: 03 | C89: 03 | D89: 01 | E89: 999 | I89: OTRAS TRANSFERENCIAS - DISTRIBUCIÓN PREVIO CONCEPTO DGPPN | J89: Nación | K89: CSF | L89: 10 | M89: 0 | N89: 0 | O89: 0 | P89: 0 | Q89: 0 | R89: 0 | S89: 0 | T89: 0 | U89: 0
A90: A | B90: 03 | C90: 04 | I90: PRESTACIONES PARA CUBRIR RIESGOS SOCIALES | J90: Nación | K90: CSF | L90: 10 | M90: 1650685000 | N90: 1650685000 | O90: 0 | P90: 262725477 | Q90: 262725477 | R90: 262725477 | S90: 262725477 | T90: 0.1591614857 | U90: 0.1591614857
A91: A | B91: 03 | C91: 04 | D91: 02 | I91: PRESTACIONES SOCIALES RELACIONADAS CON EL EMPLEO | J91: Nación | K91: CSF | L91: 10 | M91: 1650685000 | N91: 1650685000 | O91: 0 | P91: 262725477 | Q91: 262725477 | R91: 262725477 | S91: 262725477 | T91: 0.1591614857 | U91: 0.1591614857
A92: A | B92: 03 | C92: 04 | D92: 02 | E92: 012 | I92: INCAPACIDADES Y LICENCIAS DE MATERNIDAD Y PATERNIDAD (NO DE PENSIONES) | J92: Nación | K92: CSF | L92: 10 | M92: 1650685000 | N92: 1650685000 | O92: 0 | P92: 262725477 | Q92: 262725477 | R92: 262725477 | S92: 262725477 | T92: 0.1591614857 | U92: 0.1591614857
A93: A | B93: 03 | C93: 04 | D93: 02 | E93: 012 | F93: 001 | I93: INCAPACIDADES (NO DE PENSIONES) | J93: Nación | K93: CSF | L93: 10 | M93: 850685000 | N93: 850685000 | O93: 0 | P93: 161628165 | Q93: 161628165 | R93: 161628165 | S93: 161628165 | T93: 0.1899976666 | U93: 0.1899976666
A94: A | B94: 03 | C94: 04 | D94: 02 | E94: 012 | F94: 002 | I94: LICENCIAS DE MATERNIDAD Y PATERNIDAD (NO DE PENSIONES) | J94: Nación | K94: CSF | L94: 10 | M94: 800000000 | N94: 800000000 | O94: 0 | P94: 101097312 | Q94: 101097312 | R94: 101097312 | S94: 101097312 | T94: 0.12637164 | U94: 0.12637164
A95: A | B95: 08 | I95: GASTOS POR TRIBUTOS, MULTAS, SANCIONES E INTERESES DE MORA | J95: Nación | K95: CSF | L95: 10 | M95: 485000000 | N95: 485000000 | O95: 0 | P95: 135937622 | Q95: 135937622 | R95: 135937622 | S95: 135937622 | T95: 0.2802837567 | U95: 0.2802837567
A96: A | B96: 08 | I96: GASTOS POR TRIBUTOS, MULTAS, SANCIONES E INTERESES DE MORA | J96: Nación | K96: SSF | L96: 11 | M96: 1881077000 | N96: 0 | O96: 1881077000 | P96: 0 | Q96: 0 | R96: 0 | S96: 0 | T96: 0 | U96: 0
A97: A | B97: 08 | C97: 01 | I97: IMPUESTOS | J97: Nación | K97: CSF | L97: 10 | M97: 485000000 | N97: 485000000 | O97: 0 | P97: 135937622 | Q97: 135937622 | R97: 135937622 | S97: 135937622 | T97: 0.2802837567 | U97: 0.2802837567
A98: A | B98: 08 | C98: 01 | D98: 02 | I98: IMPUESTOS TERRITORIALES | J98: Nación | K98: CSF | L98: 10 | M98: 485000000 | N98: 485000000 | O98: 0 | P98: 135937622 | Q98: 135937622 | R98: 135937622 | S98: 135937622 | T98: 0.2802837567 | U98: 0.2802837567
A99: A | B99: 08 | C99: 01 | D99: 02 | E99: 001 | I99: IMPUESTO PREDIAL Y SOBRETASA AMBIENTAL | J99: Nación | K99: CSF | L99: 10 | M99: 470000000 | N99: 470000000 | O99: 0 | P99: 135937622 | Q99: 135937622 | R99: 135937622 | S99: 135937622 | T99: 0.289228983 | U99: 0.289228983
A100: A | B100: 08 | C100: 01 | D100: 02 | E100: 006 | I100: IMPUESTO SOBRE VEHÍCULOS AUTOMOTORES | J100: Nación | K100: CSF | L100: 10 | M100: 15000000 | N100: 15000000 | O100: 0 | P100: 0 | Q100: 0 | R100: 0 | S100: 0 | T100: 0 | U100: 0
A101: A | B101: 08 | C101: 04 | I101: CONTRIBUCIONES | J101: Nación | K101: SSF | L101: 11 | M101: 1881077000 | N101: 0 | O101: 1881077000 | P101: 0 | Q101: 0 | R101: 0 | S101: 0 | T101: 0 | U101: 0
A102: A | B102: 08 | C102: 04 | D102: 01 | I102: CUOTA DE FISCALIZACIÓN Y AUDITAJE | J102: Nación | K102: SSF | L102: 11 | M102: 1881077000 | N102: 0 | O102: 1881077000 | P102: 0 | Q102: 0 | R102: 0 | S102: 0 | T102: 0 | U102: 0
A103: B | I103: SERVICIO DE LA DEUDA PÚBLICA | J103: Nación | K103: CSF | L103: 11 | M103: 247291740 | N103: 0 | O103: 247291740 | P103: 0 | Q103: 0 | R103: 0 | S103: 0 | T103: 0 | U103: 0
A104: B | B104: 10 | I104: SERVICIO DE LA DEUDA PÚBLICA INTERNA | J104: Nación | K104: CSF | L104: 11 | M104: 247291740 | N104: 0 | O104: 247291740 | P104: 0 | Q104: 0 | R104: 0 | S104: 0 | T104: 0 | U104: 0
A105: B | B105: 10 | C105: 04 | I105: FONDO DE CONTINGENCIAS | J105: Nación | K105: CSF | L105: 11 | M105: 247291740 | N105: 0 | O105: 247291740 | P105: 0 | Q105: 0 | R105: 0 | S105: 0 | T105: 0 | U105: 0
A106: B | B106: 10 | C106: 04 | D106: 01 | I106: APORTES AL FONDO DE CONTINGENCIAS | J106: Nación | K106: CSF | L106: 11 | M106: 247291740 | N106: 0 | O106: 247291740 | P106: 0 | Q106: 0 | R106: 0 | S106: 0 | T106: 0 | U106: 0
A107: C | I107: INVERSION | J107: Nación | K107: CSF | L107: 11 | M107: 16000000000 | N107: 14190222821 | O107: 1809777179 | P107: 10337236478 | Q107: 198172087.9 | R107: 198172087.9 | S107: 198172087.9 | T107: 0.6460772799 | U107: 0.01238575549
A108: C | I108: INVERSION | J108: Nación | K108: CSF | L108: 13 | M108: 37735679763 | N108: 23985074827 | O108: 13750604936 | P108: 15786864972 | Q108: 283682656.8 | R108: 274236329.8 | S108: 274236329.8 | T108: 0.4183537986 | U108: 0.00751762413
A109: C | I109: INVERSION | J109: Nación | K109: CSF | L109: 15 | M109: 2640000000 | N109: 1195625321 | O109: 1444374679 | P109: 621244740 | Q109: 0 | R109: 0 | S109: 0 | T109: 0.2353199773 | U109: 0
A110: C | B110: 2502 | I110: PROMOCIÓN, PROTECCIÓN Y DEFENSA DE LOS DERECHOS HUMANOS Y EL DERECHO INTERNACIONAL HUMANITARIO | J110: Nación | K110: CSF | L110: 11 | M110: 15500000000 | N110: 13853322821 | O110: 1646677179 | P110: 10128736478 | Q110: 198172087.9 | R110: 198172087.9 | S110: 198172087.9 | T110: 0.6534668695 | U110: 0.01278529599
A111: C | B111: 2502 | I111: PROMOCIÓN, PROTECCIÓN Y DEFENSA DE LOS DERECHOS HUMANOS Y EL DERECHO INTERNACIONAL HUMANITARIO | J111: Nación | K111: CSF | L111: 13 | M111: 26019181301 | N111: 23985074827 | O111: 2034106474 | P111: 15786864972 | Q111: 283682656.8 | R111: 274236329.8 | S111: 274236329.8 | T111: 0.6067394969 | U111: 0.01090282794
A112: C | B112: 2502 | I112: PROMOCIÓN, PROTECCIÓN Y DEFENSA DE LOS DERECHOS HUMANOS Y EL DERECHO INTERNACIONAL HUMANITARIO | J112: Nación | K112: CSF | L112: 15 | M112: 2640000000 | N112: 1195625321 | O112: 1444374679 | P112: 621244740 | Q112: 0 | R112: 0 | S112: 0 | T112: 0.2353199773 | U112: 0
A113: C | B113: 2502 | C113: 1000 | I113: INTERSUBSECTORIAL GOBIERNO | J113: Nación | K113: CSF | L113: 11 | M113: 15500000000 | N113: 13853322821 | O113: 1646677179 | P113: 10128736478 | Q113: 198172087.9 | R113: 198172087.9 | S113: 198172087.9 | T113: 0.6534668695 | U113: 0.01278529599
A114: C | B114: 2502 | C114: 1000 | I114: INTERSUBSECTORIAL GOBIERNO | J114: Nación | K114: CSF | L114: 13 | M114: 26019181301 | N114: 23985074827 | O114: 2034106474 | P114: 15786864972 | Q114: 283682656.8 | R114: 274236329.8 | S114: 274236329.8 | T114: 0.6067394969 | U114: 0.01090282794
A115: C | B115: 2502 | C115: 1000 | I115: INTERSUBSECTORIAL GOBIERNO | J115: Nación | K115: CSF | L115: 15 | M115: 2640000000 | N115: 1195625321 | O115: 1444374679 | P115: 621244740 | Q115: 0 | R115: 0 | S115: 0 | T115: 0.2353199773 | U115: 0
A116: C | B116: 2502 | C116: 1000 | D116: 25 | I116: FORTALECIMIENTO DE LA ATENCIÓN, PROMOCIÓN, DIVULGACIÓN, PROTECCIÓN Y DEFENSA DE DERECHOS HUMANOS A LA POBLACIÓN Y GRUPOS DE INTERÉS EN EL TERRITORIO NACIONAL NACIONAL | J116: Nación | K116: CSF | L116: 11 | M116: 10500000000 | N116: 10269199998 | O116: 230800002 | P116: 7402833109 | Q116: 181857655.9 | R116: 181857655.9 | S116: 181857655.9 | T116: 0.7050317247 | U116: 0.01731977675
A117: C | B117: 2502 | C117: 1000 | D117: 25 | I117: FORTALECIMIENTO DE LA ATENCIÓN, PROMOCIÓN, DIVULGACIÓN, PROTECCIÓN Y DEFENSA DE DERECHOS HUMANOS A LA POBLACIÓN Y GRUPOS DE INTERÉS EN EL TERRITORIO NACIONAL NACIONAL | J117: Nación | K117: CSF | L117: 13 | M117: 10500000000 | N117: 9731042252 | O117: 768957748 | P117: 6023896297 | Q117: 59317319.76 | R117: 59317319.76 | S117: 59317319.76 | T117: 0.5737044092 | U117: 0.005649268549
A118: C | B118: 2502 | C118: 1000 | D118: 25 | I118: FORTALECIMIENTO DE LA ATENCIÓN, PROMOCIÓN, DIVULGACIÓN, PROTECCIÓN Y DEFENSA DE DERECHOS HUMANOS A LA POBLACIÓN Y GRUPOS DE INTERÉS EN EL TERRITORIO NACIONAL NACIONAL | J118: Nación | K118: CSF | L118: 15 | M118: 2640000000 | N118: 1195625321 | O118: 1444374679 | P118: 621244740 | Q118: 0 | R118: 0 | S118: 0 | T118: 0.2353199773 | U118: 0
A119: C | B119: 2502 | C119: 1000 | D119: 25 | E119: 0 | F119: 2502002 | I119: SERVICIO DE ASISTENCIA TÉCNICA PARA ATENCIÓN, ORIENTACIÓN Y ASESORÍA EN MATERIA DE DERECHOS HUMANOS, EL DERECHO INTERNACIONAL HUMANITARIO Y EN ESCENARIOS DE PAZ | J119: Nación | K119: CSF | L119: 11 | M119: 4335026770 | N119: 4217226770 | O119: 117800000.5 | P119: 2424669028 | Q119: 70269150 | R119: 70269150 | S119: 70269150 | T119: 0.5593204278 | U119: 0.01620962308
A120: C | B120: 2502 | C120: 1000 | D120: 25 | E120: 0 | F120: 2502003 | I120: SERVICIO DE EDUCACIÓN INFORMAL EN MATERIA DE DERECHOS HUMANOS Y DERECHO INTERNACIONAL HUMANITARIO | J120: Nación | K120: CSF | L120: 11 | M120: 1796418873 | N120: 1764918873 | O120: 31500000.48 | P120: 1388856650 | Q120: 13561174 | R120: 13561174 | S120: 13561174 | T120: 0.7731251717 | U120: 0.007549004411
A121: C | B121: 2502 | C121: 1000 | D121: 25 | E121: 0 | F121: 2502004 | I121: SERVICIO DE DIVULGACIÓN DE LOS DERECHOS HUMANOS Y DEL DERECHO INTERNACIONAL HUMANITARIO DE LA POBLACIÓN | J121: Nación | K121: CSF | L121: 11 | M121: 655805936.2 | N121: 655805936 | O121: 0.17 | P121: 418805936 | Q121: 9399999 | R121: 9399999 | S121: 9399999 | T121: 0.6386126031 | U121: 0.01433350704
A122: C | B122: 2502 | C122: 1000 | D122: 25 | E122: 0 | F122: 2502011 | I122: DOCUMENTOS DE SEGUIMIENTO | J122: Nación | K122: CSF | L122: 11 | M122: 2927069486 | N122: 2845569485 | O122: 81500000.85 | P122: 2486501495 | Q122: 73494000 | R122: 73494000 | S122: 73494000 | T122: 0.8494849565 | U122: 0.02510838925
A123: C | B123: 2502 | C123: 1000 | D123: 25 | E123: 0 | F123: 2502006 | I123: DOCUMENTOS DE INVESTIGACIÓN | J123: Nación | K123: CSF | L123: 11 | M123: 785678934 | N123: 785678934 | O123: 0.01 | P123: 684000000 | Q123: 15133332.9 | R123: 15133332.9 | S123: 15133332.9 | T123: 0.8705846248 | U123: 0.01926147214
A124: C | B124: 2502 | C124: 1000 | D124: 25 | E124: 0 | F124: 2502006 | I124: DOCUMENTOS DE INVESTIGACIÓN | J124: Nación | K124: CSF | L124: 13 | M124: 1285678934 | N124: 1285678934 | O124: 0.01 | P124: 765507886 | Q124: 6533333 | R124: 6533333 | S124: 6533333 | T124: 0.5954113937 | U124: 0.005081620945
A125: C | B125: 2502 | C125: 1000 | D125: 25 | E125: 0 | F125: 2502011 | I125: DOCUMENTOS DE SEGUIMIENTO | J125: Nación | K125: CSF | L125: 13 | M125: 2927069486 | N125: 2811569485 | O125: 115500000.8 | P125: 1617830062 | Q125: 38123669.76 | R125: 38123669.76 | S125: 38123669.76 | T125: 0.5527132409 | U125: 0.01302451819
A126: C | B126: 2502 | C126: 1000 | D126: 25 | E126: 0 | F126: 2502004 | I126: SERVICIO DE DIVULGACIÓN DE LOS DERECHOS HUMANOS Y DEL DERECHO INTERNACIONAL HUMANITARIO DE LA POBLACIÓN | J126: Nación | K126: CSF | L126: 13 | M126: 655805936.2 | N126: 599508936 | O126: 56297000.17 | P126: 450216601 | Q126: 3800000 | R126: 3800000 | S126: 3800000 | T126: 0.6865088835 | U126: 0.005794397078
A127: C | B127: 2502 | C127: 1000 | D127: 25 | E127: 0 | F127: 2502003 | I127: SERVICIO DE EDUCACIÓN INFORMAL EN MATERIA DE DERECHOS HUMANOS Y DERECHO INTERNACIONAL HUMANITARIO | J127: Nación | K127: CSF | L127: 13 | M127: 1796418873 | N127: 1776418873 | O127: 20000000.48 | P127: 1153834965 | Q127: 5715055 | R127: 5715055 | S127: 5715055 | T127: 0.6422972849 | U127: 0.003181359918
A128: C | B128: 2502 | C128: 1000 | D128: 25 | E128: 0 | F128: 2502002 | I128: SERVICIO DE ASISTENCIA TÉCNICA PARA ATENCIÓN, ORIENTACIÓN Y ASESORÍA EN MATERIA DE DERECHOS HUMANOS, EL DERECHO INTERNACIONAL HUMANITARIO Y EN ESCENARIOS DE PAZ | J128: Nación | K128: CSF | L128: 13 | M128: 3835026770 | N128: 3257866024 | O128: 577160746.5 | P128: 2036506783 | Q128: 5145262 | R128: 5145262 | S128: 5145262 | T128: 0.5310280488 | U128: 0.001341649565
A129: C | B129: 2502 | C129: 1000 | D129: 25 | E129: 0 | F129: 2502002 | I129: SERVICIO DE ASISTENCIA TÉCNICA PARA ATENCIÓN, ORIENTACIÓN Y ASESORÍA EN MATERIA DE DERECHOS HUMANOS, EL DERECHO INTERNACIONAL HUMANITARIO Y EN ESCENARIOS DE PAZ | J129: Nación | K129: CSF | L129: 15 | M129: 289949588 | N129: 0 | O129: 289949588 | P129: 0 | Q129: 0 | R129: 0 | S129: 0 | T129: 0 | U129: 0
A130: C | B130: 2502 | C130: 1000 | D130: 25 | E130: 0 | F130: 2502003 | I130: SERVICIO DE EDUCACIÓN INFORMAL EN MATERIA DE DERECHOS HUMANOS Y DERECHO INTERNACIONAL HUMANITARIO | J130: Nación | K130: CSF | L130: 15 | M130: 871671031 | N130: 776601438 | O130: 95069593.05 | P130: 460628461 | Q130: 0 | R130: 0 | S130: 0 | T130: 0.5284430073 | U130: 0
A131: C | B131: 2502 | C131: 1000 | D131: 25 | E131: 0 | F131: 2502004 | I131: SERVICIO DE DIVULGACIÓN DE LOS DERECHOS HUMANOS Y DEL DERECHO INTERNACIONAL HUMANITARIO DE LA POBLACIÓN | J131: Nación | K131: CSF | L131: 15 | M131: 564888349.7 | N131: 202235350 | O131: 362652999.7 | P131: 143616279 | Q131: 0 | R131: 0 | S131: 0 | T131: =+IFERROR(P131/M131,0) -> 0.2542383448 | U131: =+IFERROR(Q131/M131,0) -> 0
A132: C | B132: 2502 | C132: 1000 | D132: 25 | E132: 0 | F132: 2502011 | I132: DOCUMENTOS DE SEGUIMIENTO | J132: Nación | K132: CSF | L132: 15 | M132: 715948899.3 | N132: 22698901 | O132: 693249998.3 | P132: 0 | Q132: 0 | R132: 0 | S132: 0 | T132: 0 | U132: 0
A133: C | B133: 2502 | C133: 1000 | D133: 25 | E133: 0 | F133: 2502006 | I133: DOCUMENTOS DE INVESTIGACIÓN | J133: Nación | K133: CSF | L133: 15 | M133: 197542132 | N133: 194089632 | O133: 3452499.98 | P133: 17000000 | Q133: 0 | R133: 0 | S133: 0 | T133: 0.086057591 | U133: 0
A134: C | B134: 2502 | C134: 1000 | D134: 25 | E134: 0 | F134: 2502002 | G134: 02 | I134: ADQUISICIÓN DE BIENES Y SERVICIOS - SERVICIO DE ASISTENCIA TÉCNICA PARA ATENCIÓN, ORIENTACIÓN Y ASESORÍA EN MATERIA DE DERECHOS HUMANOS, EL DERECHO INTERNACIONAL HUMANITARIO Y EN ESCENARIOS DE PAZ - FORTALECIMIENTO DE LA ATENCIÓN, PROMOCIÓN, DIVULGAC | J134: Nación | K134: CSF | L134: 11 | M134: 4335026770 | N134: 4217226770 | O134: 117800000.5 | P134: 2424669028 | Q134: 70269150 | R134: 70269150 | S134: 70269150 | T134: 0.5593204278 | U134: 0.01620962308
A135: C | B135: 2502 | C135: 1000 | D135: 25 | E135: 0 | F135: 2502011 | G135: 02 | I135: ADQUISICIÓN DE BIENES Y SERVICIOS - DOCUMENTOS DE SEGUIMIENTO - FORTALECIMIENTO DE LA ATENCIÓN, PROMOCIÓN, DIVULGACIÓN, PROTECCIÓN Y DEFENSA DE DERECHOS HUMANOS A LA POBLACIÓN Y GRUPOS DE INTERÉS EN EL TERRITORIO NACIONAL NACIONAL | J135: Nación | K135: CSF | L135: 11 | M135: 2927069486 | N135: 2845569485 | O135: 81500000.85 | P135: 2486501495 | Q135: 73494000 | R135: 73494000 | S135: 73494000 | T135: 0.8494849565 | U135: 0.02510838925
A136: C | B136: 2502 | C136: 1000 | D136: 25 | E136: 0 | F136: 2502003 | G136: 02 | I136: ADQUISICIÓN DE BIENES Y SERVICIOS - SERVICIO DE EDUCACIÓN INFORMAL EN MATERIA DE DERECHOS HUMANOS Y DERECHO INTERNACIONAL HUMANITARIO - FORTALECIMIENTO DE LA ATENCIÓN, PROMOCIÓN, DIVULGACIÓN, PROTECCIÓN Y DEFENSA DE DERECHOS HUMANOS A LA POBLACIÓN Y | J136: Nación | K136: CSF | L136: 11 | M136: 1796418873 | N136: 1764918873 | O136: 31500000.48 | P136: 1388856650 | Q136: 13561174 | R136: 13561174 | S136: 13561174 | T136: 0.7731251717 | U136: 0.007549004411
A137: C | B137: 2502 | C137: 1000 | D137: 25 | E137: 0 | F137: 2502004 | G137: 02 | I137: ADQUISICIÓN DE BIENES Y SERVICIOS - SERVICIO DE DIVULGACIÓN DE LOS DERECHOS HUMANOS Y DEL DERECHO INTERNACIONAL HUMANITARIO DE LA POBLACIÓN - FORTALECIMIENTO DE LA ATENCIÓN, PROMOCIÓN, DIVULGACIÓN, PROTECCIÓN Y DEFENSA DE DERECHOS HUMANOS A LA POBLAC | J137: Nación | K137: CSF | L137: 11 | M137: 655805936.2 | N137: 655805936 | O137: 0.17 | P137: 418805936 | Q137: 9399999 | R137: 9399999 | S137: 9399999 | T137: 0.6386126031 | U137: 0.01433350704
A138: C | B138: 2502 | C138: 1000 | D138: 25 | E138: 0 | F138: 2502006 | G138: 02 | I138: ADQUISICIÓN DE BIENES Y SERVICIOS - DOCUMENTOS DE INVESTIGACIÓN - FORTALECIMIENTO DE LA ATENCIÓN, PROMOCIÓN, DIVULGACIÓN, PROTECCIÓN Y DEFENSA DE DERECHOS HUMANOS A LA POBLACIÓN Y GRUPOS DE INTERÉS EN EL TERRITORIO NACIONAL NACIONAL | J138: Nación | K138: CSF | L138: 11 | M138: 785678934 | N138: 785678934 | O138: 0.01 | P138: 684000000 | Q138: 15133332.9 | R138: 15133332.9 | S138: 15133332.9 | T138: 0.8705846248 | U138: 0.01926147214
A139: C | B139: 2502 | C139: 1000 | D139: 25 | E139: 0 | F139: 2502006 | G139: 02 | I139: ADQUISICIÓN DE BIENES Y SERVICIOS - DOCUMENTOS DE INVESTIGACIÓN - FORTALECIMIENTO DE LA ATENCIÓN, PROMOCIÓN, DIVULGACIÓN, PROTECCIÓN Y DEFENSA DE DERECHOS HUMANOS A LA POBLACIÓN Y GRUPOS DE INTERÉS EN EL TERRITORIO NACIONAL NACIONAL | J139: Nación | K139: CSF | L139: 13 | M139: 1285678934 | N139: 1285678934 | O139: 0.01 | P139: 765507886 | Q139: 6533333 | R139: 6533333 | S139: 6533333 | T139: 0.5954113937 | U139: 0.005081620945
A140: C | B140: 2502 | C140: 1000 | D140: 25 | E140: 0 | F140: 2502004 | G140: 02 | I140: ADQUISICIÓN DE BIENES Y SERVICIOS - SERVICIO DE DIVULGACIÓN DE LOS DERECHOS HUMANOS Y DEL DERECHO INTERNACIONAL HUMANITARIO DE LA POBLACIÓN - FORTALECIMIENTO DE LA ATENCIÓN, PROMOCIÓN, DIVULGACIÓN, PROTECCIÓN Y DEFENSA DE DERECHOS HUMANOS A LA POBLAC | J140: Nación | K140: CSF | L140: 13 | M140: 655805936.2 | N140: 599508936 | O140: 56297000.17 | P140: 450216601 | Q140: 3800000 | R140: 3800000 | S140: 3800000 | T140: 0.6865088835 | U140: 0.005794397078
A141: C | B141: 2502 | C141: 1000 | D141: 25 | E141: 0 | F141: 2502003 | G141: 02 | I141: ADQUISICIÓN DE BIENES Y SERVICIOS - SERVICIO DE EDUCACIÓN INFORMAL EN MATERIA DE DERECHOS HUMANOS Y DERECHO INTERNACIONAL HUMANITARIO - FORTALECIMIENTO DE LA ATENCIÓN, PROMOCIÓN, DIVULGACIÓN, PROTECCIÓN Y DEFENSA DE DERECHOS HUMANOS A LA POBLACIÓN Y | J141: Nación | K141: CSF | L141: 13 | M141: 1796418873 | N141: 1776418873 | O141: 20000000.48 | P141: 1153834965 | Q141: 5715055 | R141: 5715055 | S141: 5715055 | T141: 0.6422972849 | U141: 0.003181359918
A142: C | B142: 2502 | C142: 1000 | D142: 25 | E142: 0 | F142: 2502011 | G142: 02 | I142: ADQUISICIÓN DE BIENES Y SERVICIOS - DOCUMENTOS DE SEGUIMIENTO - FORTALECIMIENTO DE LA ATENCIÓN, PROMOCIÓN, DIVULGACIÓN, PROTECCIÓN Y DEFENSA DE DERECHOS HUMANOS A LA POBLACIÓN Y GRUPOS DE INTERÉS EN EL TERRITORIO NACIONAL NACIONAL | J142: Nación | K142: CSF | L142: 13 | M142: 2927069486 | N142: 2811569485 | O142: 115500000.8 | P142: 1617830062 | Q142: 38123669.76 | R142: 38123669.76 | S142: 38123669.76 | T142: 0.5527132409 | U142: 0.01302451819
A143: C | B143: 2502 | C143: 1000 | D143: 25 | E143: 0 | F143: 2502002 | G143: 02 | I143: ADQUISICIÓN DE BIENES Y SERVICIOS - SERVICIO DE ASISTENCIA TÉCNICA PARA ATENCIÓN, ORIENTACIÓN Y ASESORÍA EN MATERIA DE DERECHOS HUMANOS, EL DERECHO INTERNACIONAL HUMANITARIO Y EN ESCENARIOS DE PAZ - FORTALECIMIENTO DE LA ATENCIÓN, PROMOCIÓN, DIVULGAC | J143: Nación | K143: CSF | L143: 13 | M143: 3835026770 | N143: 3257866024 | O143: 577160746.5 | P143: 2036506783 | Q143: 5145262 | R143: 5145262 | S143: 5145262 | T143: 0.5310280488 | U143: 0.001341649565
A144: C | B144: 2502 | C144: 1000 | D144: 25 | E144: 0 | F144: 2502002 | G144: 02 | I144: ADQUISICIÓN DE BIENES Y SERVICIOS - SERVICIO DE ASISTENCIA TÉCNICA PARA ATENCIÓN, ORIENTACIÓN Y ASESORÍA EN MATERIA DE DERECHOS HUMANOS, EL DERECHO INTERNACIONAL HUMANITARIO Y EN ESCENARIOS DE PAZ - FORTALECIMIENTO DE LA ATENCIÓN, PROMOCIÓN, DIVULGAC | J144: Nación | K144: CSF | L144: 15 | M144: 289949588 | N144: 0 | O144: 289949588 | P144: 0 | Q144: 0 | R144: 0 | S144: 0 | T144: 0 | U144: 0
A145: C | B145: 2502 | C145: 1000 | D145: 25 | E145: 0 | F145: 2502011 | G145: 02 | I145: ADQUISICIÓN DE BIENES Y SERVICIOS - DOCUMENTOS DE SEGUIMIENTO - FORTALECIMIENTO DE LA ATENCIÓN, PROMOCIÓN, DIVULGACIÓN, PROTECCIÓN Y DEFENSA DE DERECHOS HUMANOS A LA POBLACIÓN Y GRUPOS DE INTERÉS EN EL TERRITORIO NACIONAL NACIONAL | J145: Nación | K145: CSF | L145: 15 | M145: 715948899.3 | N145: 22698901 | O145: 693249998.3 | P145: 0 | Q145: 0 | R145: 0 | S145: 0 | T145: 0 | U145: 0
A146: C | B146: 2502 | C146: 1000 | D146: 25 | E146: 0 | F146: 2502003 | G146: 02 | I146: ADQUISICIÓN DE BIENES Y SERVICIOS - SERVICIO DE EDUCACIÓN INFORMAL EN MATERIA DE DERECHOS HUMANOS Y DERECHO INTERNACIONAL HUMANITARIO - FORTALECIMIENTO DE LA ATENCIÓN, PROMOCIÓN, DIVULGACIÓN, PROTECCIÓN Y DEFENSA DE DERECHOS HUMANOS A LA POBLACIÓN Y | J146: Nación | K146: CSF | L146: 15 | M146: 871671031 | N146: 776601438 | O146: 95069593.05 | P146: 460628461 | Q146: 0 | R146: 0 | S146: 0 | T146: 0.5284430073 | U146: 0
A147: C | B147: 2502 | C147: 1000 | D147: 25 | E147: 0 | F147: 2502004 | G147: 02 | I147: ADQUISICIÓN DE BIENES Y SERVICIOS - SERVICIO DE DIVULGACIÓN DE LOS DERECHOS HUMANOS Y DEL DERECHO INTERNACIONAL HUMANITARIO DE LA POBLACIÓN - FORTALECIMIENTO DE LA ATENCIÓN, PROMOCIÓN, DIVULGACIÓN, PROTECCIÓN Y DEFENSA DE DERECHOS HUMANOS A LA POBLAC | J147: Nación | K147: CSF | L147: 15 | M147: 564888349.7 | N147: 202235350 | O147: 362652999.7 | P147: 143616279 | Q147: 0 | R147: 0 | S147: 0 | T147: 0.2542383448 | U147: 0
A148: C | B148: 2502 | C148: 1000 | D148: 25 | E148: 0 | F148: 2502006 | G148: 02 | I148: ADQUISICIÓN DE BIENES Y SERVICIOS - DOCUMENTOS DE INVESTIGACIÓN - FORTALECIMIENTO DE LA ATENCIÓN, PROMOCIÓN, DIVULGACIÓN, PROTECCIÓN Y DEFENSA DE DERECHOS HUMANOS A LA POBLACIÓN Y GRUPOS DE INTERÉS EN EL TERRITORIO NACIONAL NACIONAL | J148: Nación | K148: CSF | L148: 15 | M148: 197542132 | N148: 194089632 | O148: 3452499.98 | P148: 17000000 | Q148: 0 | R148: 0 | S148: 0 | T148: 0.086057591 | U148: 0
A149: C | B149: 2502 | C149: 1000 | D149: 25 | E149: 0 | I149: FORTALECIMIENTO DE LA ATENCIÓN, PROMOCIÓN, DIVULGACIÓN, PROTECCIÓN Y DEFENSA DE DERECHOS HUMANOS A LA POBLACIÓN Y GRUPOS DE INTERÉS EN EL TERRITORIO NACIONAL NACIONAL | J149: Nación | K149: CSF | L149: 11 | M149: 10500000000 | N149: 10269199998 | O149: 230800002 | P149: 7402833109 | Q149: 181857655.9 | R149: 181857655.9 | S149: 181857655.9 | T149: 0.7050317247 | U149: 0.01731977675
A150: C | B150: 2502 | C150: 1000 | D150: 25 | E150: 0 | I150: FORTALECIMIENTO DE LA ATENCIÓN, PROMOCIÓN, DIVULGACIÓN, PROTECCIÓN Y DEFENSA DE DERECHOS HUMANOS A LA POBLACIÓN Y GRUPOS DE INTERÉS EN EL TERRITORIO NACIONAL NACIONAL | J150: Nación | K150: CSF | L150: 13 | M150: 10500000000 | N150: 9731042252 | O150: 768957748 | P150: 6023896297 | Q150: 59317319.76 | R150: 59317319.76 | S150: 59317319.76 | T150: 0.5737044092 | U150: 0.005649268549
A151: C | B151: 2502 | C151: 1000 | D151: 25 | E151: 0 | I151: FORTALECIMIENTO DE LA ATENCIÓN, PROMOCIÓN, DIVULGACIÓN, PROTECCIÓN Y DEFENSA DE DERECHOS HUMANOS A LA POBLACIÓN Y GRUPOS DE INTERÉS EN EL TERRITORIO NACIONAL NACIONAL | J151: Nación | K151: CSF | L151: 15 | M151: 2640000000 | N151: 1195625321 | O151: 1444374679 | P151: 621244740 | Q151: 0 | R151: 0 | S151: 0 | T151: 0.2353199773 | U151: 0
A152: C | B152: 2502 | C152: 1000 | D152: 27 | E152: 0 | I152: CONTRIBUCION EN LA CONSTRUCCION DE CIUDADANIA DE LA VICTIMAS DEL CONFLICTO ARMADO NACIONAL | J152: Nación | K152: CSF | L152: 11 | M152: 5000000000 | N152: 3584122823 | O152: 1415877177 | P152: 2725903369 | Q152: 16314432 | R152: 16314432 | S152: 16314432 | T152: 0.5451806738 | U152: 0.0032628864
A153: C | B153: 2502 | C153: 1000 | D153: 27 | E153: 0 | F153: 2502001 | I153: SERVICIO DE ADVERTENCIA Y SEGUIMIENTO A LOS RIESGOS DE VULNERACIÓN DE LOS DERECHOS HUMANOS, EL DERECHO INTERNACIONAL HUMANITARIO Y EN LOS ESCENARIOS DE PAZ | J153: Nación | K153: CSF | L153: 11 | M153: 1699633877 | N153: 891448416 | O153: 808185461.4 | P153: 483693790 | Q153: 1268195 | R153: 1268195 | S153: 1268195 | T153: 0.2845870493 | U153: 0.000746157756
A154: C | B154: 2502 | C154: 1000 | D154: 27 | E154: 0 | F154: 2502002 | I154: SERVICIO DE ASISTENCIA TÉCNICA PARA ATENCIÓN, ORIENTACIÓN Y ASESORÍA EN MATERIA DE DERECHOS HUMANOS, EL DERECHO INTERNACIONAL HUMANITARIO Y EN ESCENARIOS DE PAZ | J154: Nación | K154: CSF | L154: 11 | M154: 2196579406 | N154: 2182579406 | O154: 14000000.3 | P154: 1862362488 | Q154: 8751619 | R154: 8751619 | S154: 8751619 | T154: 0.8478466486 | U154: 0.003984203337
A155: C | B155: 2502 | C155: 1000 | D155: 27 | E155: 0 | F155: 2502003 | I155: SERVICIO DE EDUCACIÓN INFORMAL EN MATERIA DE DERECHOS HUMANOS Y DERECHO INTERNACIONAL HUMANITARIO | J155: Nación | K155: CSF | L155: 11 | M155: 1103786716 | N155: 510095001 | O155: 593691715.3 | P155: 379847091 | Q155: 6294618 | R155: 6294618 | S155: 6294618 | T155: 0.3441308773 | U155: 0.005702748463
A156: C | B156: 2502 | C156: 1000 | D156: 27 | E156: 0 | F156: 2502003 | I156: SERVICIO DE EDUCACIÓN INFORMAL EN MATERIA DE DERECHOS HUMANOS Y DERECHO INTERNACIONAL HUMANITARIO | J156: Nación | K156: CSF | L156: 13 | M156: 3425973234 | N156: 2909815739 | O156: 516157494.7 | P156: 1690442734 | Q156: 13236986 | R156: 13236986 | S156: 13236986 | T156: 0.4934197143 | U156: 0.003863715533
A157: C | B157: 2502 | C157: 1000 | D157: 27 | E157: 0 | F157: 2502002 | I157: SERVICIO DE ASISTENCIA TÉCNICA PARA ATENCIÓN, ORIENTACIÓN Y ASESORÍA EN MATERIA DE DERECHOS HUMANOS, EL DERECHO INTERNACIONAL HUMANITARIO Y EN ESCENARIOS DE PAZ | J157: Nación | K157: CSF | L157: 13 | M157: 6817822810 | N157: 6174697699 | O157: 643125110.7 | P157: 4386698719 | Q157: 135354590 | R157: 130461257 | S157: 130461257 | T157: 0.6434163576 | U157: 0.01985305189
A158: C | B158: 2502 | C158: 1000 | D158: 27 | E158: 0 | F158: 2502001 | I158: SERVICIO DE ADVERTENCIA Y SEGUIMIENTO A LOS RIESGOS DE VULNERACIÓN DE LOS DERECHOS HUMANOS, EL DERECHO INTERNACIONAL HUMANITARIO Y EN LOS ESCENARIOS DE PAZ | J158: Nación | K158: CSF | L158: 13 | M158: 5275385258 | N158: 5169519137 | O158: 105866120.6 | P158: 3685827222 | Q158: 75773761 | R158: 71220767 | S158: 71220767 | T158: 0.6986839903 | U158: 0.01436364499
A159: C | B159: 2502 | C159: 1000 | D159: 27 | E159: 0 | I159: CONTRIBUCION EN LA CONSTRUCCION DE CIUDADANIA DE LA VICTIMAS DEL CONFLICTO ARMADO NACIONAL | J159: Nación | K159: CSF | L159: 13 | M159: 15519181301 | N159: 14254032575 | O159: 1265148726 | P159: 9762968675 | Q159: 224365337 | R159: 214919010 | S159: 214919010 | T159: 0.6290904453 | U159: 0.01445729209
A160: C | B160: 2502 | C160: 1000 | D160: 27 | E160: 0 | F160: 2502001 | G160: 02 | I160: ADQUISICIÓN DE BIENES Y SERVICIOS - SERVICIO DE ADVERTENCIA Y SEGUIMIENTO A LOS RIESGOS DE VULNERACIÓN DE LOS DERECHOS HUMANOS, EL DERECHO INTERNACIONAL HUMANITARIO Y EN LOS ESCENARIOS DE PAZ - CONTRIBUCION EN LA CONSTRUCCION DE CIUDADANIA DE LA VI | J160: Nación | K160: CSF | L160: 11 | M160: 1699633877 | N160: 891448416 | O160: 808185461.4 | P160: 483693790 | Q160: 1268195 | R160: 1268195 | S160: 1268195 | T160: 0.2845870493 | U160: 0.000746157756
A161: C | B161: 2502 | C161: 1000 | D161: 27 | E161: 0 | F161: 2502002 | G161: 02 | I161: ADQUISICIÓN DE BIENES Y SERVICIOS - SERVICIO DE ASISTENCIA TÉCNICA PARA ATENCIÓN, ORIENTACIÓN Y ASESORÍA EN MATERIA DE DERECHOS HUMANOS, EL DERECHO INTERNACIONAL HUMANITARIO Y EN ESCENARIOS DE PAZ - CONTRIBUCION EN LA CONSTRUCCION DE CIUDADANIA DE | J161: Nación | K161: CSF | L161: 11 | M161: 2196579406 | N161: 2182579406 | O161: 14000000.3 | P161: 1862362488 | Q161: 8751619 | R161: 8751619 | S161: 8751619 | T161: 0.8478466486 | U161: 0.003984203337
A162: C | B162: 2502 | C162: 1000 | D162: 27 | E162: 0 | F162: 2502003 | G162: 02 | I162: ADQUISICIÓN DE BIENES Y SERVICIOS - SERVICIO DE EDUCACIÓN INFORMAL EN MATERIA DE DERECHOS HUMANOS Y DERECHO INTERNACIONAL HUMANITARIO - CONTRIBUCION EN LA CONSTRUCCION DE CIUDADANIA DE LA VICTIMAS DEL CONFLICTO ARMADO NACIONAL | J162: Nación | K162: CSF | L162: 11 | M162: 1103786716 | N162: 510095001 | O162: 593691715.3 | P162: 379847091 | Q162: 6294618 | R162: 6294618 | S162: 6294618 | T162: 0.3441308773 | U162: 0.005702748463
A163: C | B163: 2502 | C163: 1000 | D163: 27 | E163: 0 | F163: 2502003 | G163: 02 | I163: ADQUISICIÓN DE BIENES Y SERVICIOS - SERVICIO DE EDUCACIÓN INFORMAL EN MATERIA DE DERECHOS HUMANOS Y DERECHO INTERNACIONAL HUMANITARIO - CONTRIBUCION EN LA CONSTRUCCION DE CIUDADANIA DE LA VICTIMAS DEL CONFLICTO ARMADO NACIONAL | J163: Nación | K163: CSF | L163: 13 | M163: 3425973234 | N163: 2909815739 | O163: 516157494.7 | P163: 1690442734 | Q163: 13236986 | R163: 13236986 | S163: 13236986 | T163: 0.4934197143 | U163: 0.003863715533
A164: C | B164: 2502 | C164: 1000 | D164: 27 | E164: 0 | F164: 2502002 | G164: 02 | I164: ADQUISICIÓN DE BIENES Y SERVICIOS - SERVICIO DE ASISTENCIA TÉCNICA PARA ATENCIÓN, ORIENTACIÓN Y ASESORÍA EN MATERIA DE DERECHOS HUMANOS, EL DERECHO INTERNACIONAL HUMANITARIO Y EN ESCENARIOS DE PAZ - CONTRIBUCION EN LA CONSTRUCCION DE CIUDADANIA DE | J164: Nación | K164: CSF | L164: 13 | M164: 6817822810 | N164: 6174697699 | O164: 643125110.7 | P164: 4386698719 | Q164: 135354590 | R164: 130461257 | S164: 130461257 | T164: 0.6434163576 | U164: 0.01985305189
A165: C | B165: 2502 | C165: 1000 | D165: 27 | E165: 0 | F165: 2502001 | G165: 02 | I165: ADQUISICIÓN DE BIENES Y SERVICIOS - SERVICIO DE ADVERTENCIA Y SEGUIMIENTO A LOS RIESGOS DE VULNERACIÓN DE LOS DERECHOS HUMANOS, EL DERECHO INTERNACIONAL HUMANITARIO Y EN LOS ESCENARIOS DE PAZ - CONTRIBUCION EN LA CONSTRUCCION DE CIUDADANIA DE LA VI | J165: Nación | K165: CSF | L165: 13 | M165: 5275385258 | N165: 5169519137 | O165: 105866120.6 | P165: 3685827222 | Q165: 75773761 | R165: 71220767 | S165: 71220767 | T165: 0.6986839903 | U165: 0.01436364499
A166: C | B166: 2502 | C166: 1000 | D166: 27 | I166: CONTRIBUCION EN LA CONSTRUCCION DE CIUDADANIA DE LA VICTIMAS DEL CONFLICTO ARMADO NACIONAL | J166: Nación | K166: CSF | L166: 11 | M166: 5000000000 | N166: 3584122823 | O166: 1415877177 | P166: 2725903369 | Q166: 16314432 | R166: 16314432 | S166: 16314432 | T166: 0.5451806738 | U166: 0.0032628864
A167: C | B167: 2502 | C167: 1000 | D167: 27 | I167: CONTRIBUCION EN LA CONSTRUCCION DE CIUDADANIA DE LA VICTIMAS DEL CONFLICTO ARMADO NACIONAL | J167: Nación | K167: CSF | L167: 13 | M167: 15519181301 | N167: 14254032575 | O167: 1265148726 | P167: 9762968675 | Q167: 224365337 | R167: 214919010 | S167: 214919010 | T167: 0.6290904453 | U167: 0.01445729209
A168: C | B168: 2599 | I168: FORTALECIMIENTO DE LA GESTIÓN Y DIRECCIÓN DEL SECTOR ORGANISMOS DE CONTROL | J168: Nación | K168: CSF | L168: 11 | M168: 500000000 | N168: 336900000 | O168: 163100000 | P168: 208500000 | Q168: 0 | R168: 0 | S168: 0 | T168: 0.417 | U168: 0
A169: C | B169: 2599 | I169: FORTALECIMIENTO DE LA GESTIÓN Y DIRECCIÓN DEL SECTOR ORGANISMOS DE CONTROL | J169: Nación | K169: CSF | L169: 13 | M169: 11716498462 | N169: 0 | O169: 11716498462 | P169: 0 | Q169: 0 | R169: 0 | S169: 0 | T169: 0 | U169: 0
A170: C | B170: 2599 | C170: 1000 | I170: INTERSUBSECTORIAL GOBIERNO | J170: Nación | K170: CSF | L170: 11 | M170: 500000000 | N170: 336900000 | O170: 163100000 | P170: 208500000 | Q170: 0 | R170: 0 | S170: 0 | T170: 0.417 | U170: 0
A171: C | B171: 2599 | C171: 1000 | I171: INTERSUBSECTORIAL GOBIERNO | J171: Nación | K171: CSF | L171: 13 | M171: 11716498462 | N171: 0 | O171: 11716498462 | P171: 0 | Q171: 0 | R171: 0 | S171: 0 | T171: 0 | U171: 0
A172: C | B172: 2599 | C172: 1000 | D172: 7 | I172: ADECUACIÓN DE LAS CONDICIONES FÍSICAS APROPIADAS PARA EL FUNCIONAMIENTO DE LAS DEFENSORÍAS DEL PUEBLO A NIVEL REGIONAL NACIONAL | J172: Nación | K172: CSF | L172: 13 | M172: 10000000000 | N172: 0 | O172: 10000000000 | P172: 0 | Q172: 0 | R172: 0 | S172: 0 | T172: 0 | U172: 0
A173: C | B173: 2599 | C173: 1000 | D173: 7 | E173: 0 | I173: ADECUACIÓN DE LAS CONDICIONES FÍSICAS APROPIADAS PARA EL FUNCIONAMIENTO DE LAS DEFENSORÍAS DEL PUEBLO A NIVEL REGIONAL NACIONAL | J173: Nación | K173: CSF | L173: 13 | M173: 10000000000 | N173: 0 | O173: 10000000000 | P173: 0 | Q173: 0 | R173: 0 | S173: 0 | T173: 0 | U173: 0
A174: C | B174: 2599 | C174: 1000 | D174: 7 | E174: 0 | F174: 2599011 | I174: SEDES ADECUADAS | J174: Nación | K174: CSF | L174: 13 | M174: 500000000 | N174: 0 | O174: 500000000 | P174: 0 | Q174: 0 | R174: 0 | S174: 0 | T174: 0 | U174: 0
A175: C | B175: 2599 | C175: 1000 | D175: 7 | E175: 0 | F175: 2599015 | I175: SEDES ADQUIRIDAS | J175: Nación | K175: CSF | L175: 13 | M175: 9500000000 | N175: 0 | O175: 9500000000 | P175: 0 | Q175: 0 | R175: 0 | S175: 0 | T175: 0 | U175: 0
A176: C | B176: 2599 | C176: 1000 | D176: 7 | E176: 0 | F176: 2599011 | G176: 02 | I176: ADQUISICIÓN DE BIENES Y SERVICIOS - SEDES ADECUADAS - ADECUACIÓN DE LAS CONDICIONES FÍSICAS APROPIADAS PARA EL FUNCIONAMIENTO DE LAS DEFENSORÍAS DEL PUEBLO A NIVEL REGIONAL NACIONAL | J176: Nación | K176: CSF | L176: 13 | M176: 500000000 | N176: 0 | O176: 500000000 | P176: 0 | Q176: 0 | R176: 0 | S176: 0 | T176: 0 | U176: 0
A177: C | B177: 2599 | C177: 1000 | D177: 7 | E177: 0 | F177: 2599015 | G177: 02 | I177: ADQUISICIÓN DE BIENES Y SERVICIOS - SEDES ADQUIRIDAS - ADECUACIÓN DE LAS CONDICIONES FÍSICAS APROPIADAS PARA EL FUNCIONAMIENTO DE LAS DEFENSORÍAS DEL PUEBLO A NIVEL REGIONAL NACIONAL | J177: Nación | K177: CSF | L177: 13 | M177: 9500000000 | N177: 0 | O177: 9500000000 | P177: 0 | Q177: 0 | R177: 0 | S177: 0 | T177: 0 | U177: 0
A178: C | B178: 2599 | C178: 1000 | D178: 10 | I178: FORTALECIMIENTO DEL SISTEMA INTEGRADO DE GESTIÓN EN LA DEFENSORÍA DEL PUEBLO A NIVEL NACIONAL. NACIONAL | J178: Nación | K178: CSF | L178: 11 | M178: 500000000 | N178: 336900000 | O178: 163100000 | P178: 208500000 | Q178: 0 | R178: 0 | S178: 0 | T178: 0.417 | U178: 0
A179: C | B179: 2599 | C179: 1000 | D179: 10 | E179: 0 | F179: 2599001 | I179: SERVICIOS DE INFORMACIÓN PARA LA GESTIÓN ADMINISTRATIVA | J179: Nación | K179: CSF | L179: 11 | M179: 90000000 | N179: 30000000 | O179: 60000000 | P179: 30000000 | Q179: 0 | R179: 0 | S179: 0 | T179: 0.3333333333 | U179: 0
A180: C | B180: 2599 | C180: 1000 | D180: 10 | E180: 0 | F180: 2599005 | I180: SERVICIOS DE FORMACIÓN PARA EL TRABAJO Y DESARROLLO HUMANO | J180: Nación | K180: CSF | L180: 11 | M180: 208400000 | N180: 128400000 | O180: 80000000 | P180: 0 | Q180: 0 | R180: 0 | S180: 0 | T180: 0 | U180: 0
A181: C | B181: 2599 | C181: 1000 | D181: 10 | E181: 0 | F181: 2599019 | I181: SERVICIO DE SEGUIMIENTO Y EVALUACIÓN DE LA GESTIÓN INSTITUCIONAL | J181: Nación | K181: CSF | L181: 11 | M181: 25200000 | N181: 25200000 | O181: 0 | P181: 25200000 | Q181: 0 | R181: 0 | S181: 0 | T181: 1 | U181: 0
A182: C | B182: 2599 | C182: 1000 | D182: 10 | E182: 0 | F182: 2599023 | I182: DOCUMENTOS DE LINEAMIENTOS TÉCNICOS | J182: Nación | K182: CSF | L182: 11 | M182: 176400000 | N182: 153300000 | O182: 23100000 | P182: 153300000 | Q182: 0 | R182: 0 | S182: 0 | T182: 0.869047619 | U182: 0
A183: C | B183: 2599 | C183: 1000 | D183: 10 | E183: 0 | F183: 2599001 | G183: 02 | I183: ADQUISICIÓN DE BIENES Y SERVICIOS - SERVICIOS DE INFORMACIÓN PARA LA GESTIÓN ADMINISTRATIVA - FORTALECIMIENTO DEL SISTEMA INTEGRADO DE GESTIÓN EN LA DEFENSORÍA DEL PUEBLO A NIVEL NACIONAL. NACIONAL | J183: Nación | K183: CSF | L183: 11 | M183: 90000000 | N183: 30000000 | O183: 60000000 | P183: 30000000 | Q183: 0 | R183: 0 | S183: 0 | T183: 0.3333333333 | U183: 0
A184: C | B184: 2599 | C184: 1000 | D184: 10 | E184: 0 | F184: 2599005 | G184: 02 | I184: ADQUISICIÓN DE BIENES Y SERVICIOS - SERVICIOS DE FORMACIÓN PARA EL TRABAJO Y DESARROLLO HUMANO - FORTALECIMIENTO DEL SISTEMA INTEGRADO DE GESTIÓN EN LA DEFENSORÍA DEL PUEBLO A NIVEL NACIONAL. NACIONAL | J184: Nación | K184: CSF | L184: 11 | M184: 208400000 | N184: 128400000 | O184: 80000000 | P184: 0 | Q184: 0 | R184: 0 | S184: 0 | T184: 0 | U184: 0
A185: C | B185: 2599 | C185: 1000 | D185: 10 | E185: 0 | F185: 2599019 | G185: 02 | I185: ADQUISICIÓN DE BIENES Y SERVICIOS - SERVICIO DE SEGUIMIENTO Y EVALUACIÓN DE LA GESTIÓN INSTITUCIONAL - FORTALECIMIENTO DEL SISTEMA INTEGRADO DE GESTIÓN EN LA DEFENSORÍA DEL PUEBLO A NIVEL NACIONAL. NACIONAL | J185: Nación | K185: CSF | L185: 11 | M185: 25200000 | N185: 25200000 | O185: 0 | P185: 25200000 | Q185: 0 | R185: 0 | S185: 0 | T185: 1 | U185: 0
A186: C | B186: 2599 | C186: 1000 | D186: 10 | E186: 0 | F186: 2599023 | G186: 02 | I186: ADQUISICIÓN DE BIENES Y SERVICIOS - DOCUMENTOS DE LINEAMIENTOS TÉCNICOS - FORTALECIMIENTO DEL SISTEMA INTEGRADO DE GESTIÓN EN LA DEFENSORÍA DEL PUEBLO A NIVEL NACIONAL. NACIONAL | J186: Nación | K186: CSF | L186: 11 | M186: 176400000 | N186: 153300000 | O186: 23100000 | P186: 153300000 | Q186: 0 | R186: 0 | S186: 0 | T186: 0.869047619 | U186: 0
A187: C | B187: 2599 | C187: 1000 | D187: 10 | E187: 0 | I187: FORTALECIMIENTO DEL SISTEMA INTEGRADO DE GESTIÓN EN LA DEFENSORÍA DEL PUEBLO A NIVEL NACIONAL. NACIONAL | J187: Nación | K187: CSF | L187: 11 | M187: 500000000 | N187: 336900000 | O187: 163100000 | P187: 208500000 | Q187: 0 | R187: 0 | S187: 0 | T187: 0.417 | U187: 0
A188: C | B188: 2599 | C188: 1000 | D188: 11 | I188: IMPLEMENTACIÓN DEL MODELO ESTÁNDAR DE LA GESTIÓN Y OPERACIÓN DE LAS TECNOLOGÍAS DE LA INFORMACIÓN EN LA DEFENSORÍA DEL PUEBLO - NACIONAL | J188: Nación | K188: CSF | L188: 13 | M188: 1716498462 | N188: 0 | O188: 1716498462 | P188: 0 | Q188: 0 | R188: 0 | S188: 0 | T188: 0 | U188: 0
A189: C | B189: 2599 | C189: 1000 | D189: 11 | E189: 0 | I189: IMPLEMENTACIÓN DEL MODELO ESTÁNDAR DE LA GESTIÓN Y OPERACIÓN DE LAS TECNOLOGÍAS DE LA INFORMACIÓN EN LA DEFENSORÍA DEL PUEBLO - NACIONAL | J189: Nación | K189: CSF | L189: 13 | M189: 1716498462 | N189: 0 | O189: 1716498462 | P189: 0 | Q189: 0 | R189: 0 | S189: 0 | T189: 0 | U189: 0
A190: C | B190: 2599 | C190: 1000 | D190: 11 | E190: 0 | F190: 2599021 | I190: SERVICIOS DE INTEROPERABILIDAD | J190: Nación | K190: CSF | L190: 13 | M190: 1716498462 | N190: 0 | O190: 1716498462 | P190: 0 | Q190: 0 | R190: 0 | S190: 0 | T190: 0 | U190: 0
A191: C | B191: 2599 | C191: 1000 | D191: 11 | E191: 0 | F191: 2599021 | G191: 02 | I191: ADQUISICIÓN DE BIENES Y SERVICIOS - SERVICIOS DE INTEROPERABILIDAD - IMPLEMENTACIÓN DEL MODELO ESTÁNDAR DE LA GESTIÓN Y OPERACIÓN DE LAS TECNOLOGÍAS DE LA INFORMACIÓN EN LA DEFENSORÍA DEL PUEBLO - NACIONAL | J191: Nación | K191: CSF | L191: 13 | M191: 1716498462 | N191: 0 | O191: 1716498462 | P191: 0 | Q191: 0 | R191: 0 | S191: 0 | T191: 0 | U191: 0
T192: 0 | U192: 0
T193: 0 | U193: 0
T194: 0 | U194: 0
T195: =+IFERROR(P195/M195,0) -> 0 | U195: =+IFERROR(Q195/M195,0) -> 0
T196: 0 | U196: 0
T197: 0 | U197: 0
T198: 0 | U198: 0
T199: 0 | U199: 0
T200: 0 | U200: 0
... 15 more rows

Sheet Ejec subunidad (hidden)
A1: TIPO | B1: CTA | C1: SUBC | D1: OBJG | E1: ORD | F1: SORD | G1: ITEM | H1: S. ITEM | I1: CONCEPTO | J1: FUENTE | K1: SITUACION | L1: REC. | M1: APR. VIGENTE | N1: CDP | O1: APR. DISPONIBLE | P1: COMPROMISO | Q1: OBLIGACION | R1: ORDEN PAGO | S1: PAGOS | T1: % EJECUCIÓN COMPROMETIDA | U1: %EJECUCIÓN OBLIGADA
A2: C | I2: INVERSION | J2: Nación | K2: CSF | L2: 14 | M2: 14000000000 | N2: 8338912095 | O2: 5661087905 | P2: 7820258147 | Q2: 41695779.52 | R2: 0 | S2: 0 | T2: =+IFERROR(P2/M2,0) -> 0.5585898676 | U2: =+IFERROR(Q2/M2,0) -> 0.002978269966
A3: C | B3: 2599 | I3: FORTALECIMIENTO DE LA GESTIÓN Y DIRECCIÓN DEL SECTOR ORGANISMOS DE CONTROL | J3: Nación | K3: CSF | L3: 14 | M3: 14000000000 | N3: 8338912095 | O3: 5661087905 | P3: 7820258147 | Q3: 41695779.52 | R3: 0 | S3: 0 | T3: =+IFERROR(P3/M3,0) -> 0.5585898676 | U3: =+IFERROR(Q3/M3,0) -> 0.002978269966
A4: C | B4: 2599 | C4: 1000 | I4: INTERSUBSECTORIAL GOBIERNO | J4: Nación | K4: CSF | L4: 14 | M4: 14000000000 | N4: 8338912095 | O4: 5661087905 | P4: 7820258147 | Q4: 41695779.52 | R4: 0 | S4: 0 | T4: 0.5585898676 | U4: 0.002978269966
A5: C | B5: 2599 | C5: 1000 | D5: 8 | I5: FORTALECIMIENTO DE LA CAPACIDAD INSTITUCIONAL DE LA DEFENSORÍA DEL PUEBLO DE COLOMBIA - DPC NACIONAL | J5: Nación | K5: CSF | L5: 14 | M5: 14000000000 | N5: 8338912095 | O5: 5661087905 | P5: 7820258147 | Q5: 41695779.52 | R5: 0 | S5: 0 | T5: 0.5585898676 | U5: 0.002978269966
A6: C | B6: 2599 | C6: 1000 | D6: 8 | E6: 0 | I6: FORTALECIMIENTO DE LA CAPACIDAD INSTITUCIONAL DE LA DEFENSORÍA DEL PUEBLO DE COLOMBIA - DPC NACIONAL | J6: Nación | K6: CSF | L6: 14 | M6: 14000000000 | N6: 8338912095 | O6: 5661087905 | P6: 7820258147 | Q6: 41695779.52 | R6: 0 | S6: 0 | T6: 0.5585898676 | U6: 0.002978269966
A7: C | B7: 2599 | C7: 1000 | D7: 8 | E7: 0 | F7: 2599053 | I7: DOCUMENTOS DE LINEAMIENTOS TÉCNICOS | J7: Nación | K7: CSF | L7: 14 | M7: 392676833 | N7: 92676833 | O7: 300000000 | P7: 90000000 | Q7: 0 | R7: 0 | S7: 0 | T7: 0.2291961034 | U7: 0
A8: C | B8: 2599 | C8: 1000 | D8: 8 | E8: 0 | F8: 2599055 | I8: DOCUMENTOS METODOLÓGICOS | J8: Nación | K8: CSF | L8: 14 | M8: 476149250 | N8: 126149250 | O8: 350000000 | P8: 123600000 | Q8: 5150000 | R8: 0 | S8: 0 | T8: 0.2595824734 | U8: 0.01081593639
A9: C | B9: 2599 | C9: 1000 | D9: 8 | E9: 0 | F9: 2599058 | I9: SERVICIO DE EDUCACIÓN INFORMAL PARA LA GESTIÓN ADMINISTRATIVA | J9: Nación | K9: CSF | L9: 14 | M9: 1194070167 | N9: 1194070167 | O9: 0 | P9: 1190268567 | Q9: 0 | R9: 0 | S9: 0 | T9: 0.9968162675 | U9: 0
A10: C | B10: 2599 | C10: 1000 | D10: 8 | E10: 0 | F10: 2599060 | I10: SERVICIO DE IMPLEMENTACIÓN SISTEMAS DE GESTIÓN | J10: Nación | K10: CSF | L10: 14 | M10: 1524315601 | N10: 824607334 | O10: 699708267 | P10: 808006267 | Q10: 9247999.52 | R10: 0 | S10: 0 | T10: 0.5300780668 | U10: 0.00606698476
A11: C | B11: 2599 | C11: 1000 | D11: 8 | E11: 0 | F11: 2599062 | I11: SERVICIOS DE INFORMACIÓN ACTUALIZADOS | J11: Nación | K11: CSF | L11: 14 | M11: 1256958043 | N11: 685627770 | O11: 571330273 | P11: 685627770 | Q11: 0 | R11: 0 | S11: 0 | T11: 0.5454659158 | U11: 0
A12: C | B12: 2599 | C12: 1000 | D12: 8 | E12: 0 | F12: 2599063 | I12: SERVICIOS DE INFORMACIÓN IMPLEMENTADOS | J12: Nación | K12: CSF | L12: 14 | M12: 1562954356 | N12: 357428267 | O12: 1205526089 | P12: 0 | Q12: 0 | R12: 0 | S12: 0 | T12: 0 | U12: 0
A13: C | B13: 2599 | C13: 1000 | D13: 8 | E13: 0 | F13: 2599064 | I13: DOCUMENTO PARA LA PLANEACIÓN ESTRATÉGICA EN TI | J13: Nación | K13: CSF | L13: 14 | M13: 4292053027 | N13: 3686172945 | O13: 605880082 | P13: 3686106278 | Q13: 0 | R13: 0 | S13: 0 | T13: 0.8588212342 | U13: 0
A14: C | B14: 2599 | C14: 1000 | D14: 8 | E14: 0 | F14: 2599065 | I14: SERVICIOS TECNOLÓGICOS | J14: Nación | K14: CSF | L14: 14 | M14: 3300822723 | N14: 1372179529 | O14: 1928643194 | P14: 1236649265 | Q14: 27297780 | R14: 0 | S14: 0 | T14: 0.3746487978 | U14: 0.008269992754
A15: C | B15: 2599 | C15: 1000 | D15: 8 | E15: 0 | F15: 2599063 | G15: 0201 | I15: FORTALECIMIENTO DE LA GESTIÓN Y PLANEACIÓN ESTRATÉGICA | J15: Nación | K15: CSF | L15: 14 | M15: 1562954356 | N15: 357428267 | O15: 1205526089 | P15: 0 | Q15: 0 | R15: 0 | S15: 0 | T15: 0 | U15: 0
A16: C | B16: 2599 | C16: 1000 | D16: 8 | E16: 0 | F16: 2599064 | G16: 0201 | I16: FORTALECIMIENTO DE LA GESTIÓN Y PLANEACIÓN ESTRATÉGICA | J16: Nación | K16: CSF | L16: 14 | M16: 4292053027 | N16: 3686172945 | O16: 605880082 | P16: 3686106278 | Q16: 0 | R16: 0 | S16: 0 | T16: 0.8588212342 | U16: 0
A17: C | B17: 2599 | C17: 1000 | D17: 8 | E17: 0 | F17: 2599058 | G17: 0201 | I17: FORTALECIMIENTO DE LA GESTIÓN Y PLANEACIÓN ESTRATÉGICA | J17: Nación | K17: CSF | L17: 14 | M17: 1194070167 | N17: 1194070167 | O17: 0 | P17: 1190268567 | Q17: 0 | R17: 0 | S17: 0 | T17: 0.9968162675 | U17: 0
A18: C | B18: 2599 | C18: 1000 | D18: 8 | E18: 0 | F18: 2599060 | G18: 0201 | I18: FORTALECIMIENTO DE LA GESTIÓN Y PLANEACIÓN ESTRATÉGICA | J18: Nación | K18: CSF | L18: 14 | M18: 1524315601 | N18: 824607334 | O18: 699708267 | P18: 808006267 | Q18: 9247999.52 | R18: 0 | S18: 0 | T18: 0.5300780668 | U18: 0.00606698476
A19: C | B19: 2599 | C19: 1000 | D19: 8 | E19: 0 | F19: 2599062 | G19: 0202 | I19: ATENCIÓN Y SERVICIO AL CIUDADANO | J19: Nación | K19: CSF | L19: 14 | M19: 1256958043 | N19: 685627770 | O19: 571330273 | P19: 685627770 | Q19: 0 | R19: 0 | S19: 0 | T19: 0.5454659158 | U19: 0
A20: C | B20: 2599 | C20: 1000 | D20: 8 | E20: 0 | F20: 2599055 | G20: 0202 | I20: ATENCIÓN Y SERVICIO AL CIUDADANO | J20: Nación | K20: CSF | L20: 14 | M20: 476149250 | N20: 126149250 | O20: 350000000 | P20: 123600000 | Q20: 5150000 | R20: 0 | S20: 0 | T20: 0.2595824734 | U20: 0.01081593639
A21: C | B21: 2599 | C21: 1000 | D21: 8 | E21: 0 | F21: 2599065 | G21: 0203 | I21: RENDICIÓN DE CUENTAS Y PARTICIPACIÓN CIUDADANA | J21: Nación | K21: CSF | L21: 14 | M21: 2113119750 | N21: 188121600 | O21: 1924998150 | P21: 184320000 | Q21: 0 | R21: 0 | S21: 0 | T21: 0.08722648113 | U21: 0
A22: C | B22: 2599 | C22: 1000 | D22: 8 | E22: 0 | F22: 2599053 | G22: 0203 | I22: RENDICIÓN DE CUENTAS Y PARTICIPACIÓN CIUDADANA | J22: Nación | K22: CSF | L22: 14 | M22: 392676833 | N22: 92676833 | O22: 300000000 | P22: 90000000 | Q22: 0 | R22: 0 | S22: 0 | T22: 0.2291961034 | U22: 0
A23: C | B23: 2599 | C23: 1000 | D23: 8 | E23: 0 | F23: 2599065 | G23: 0204 | I23: ADMINISTRACIÓN DEL PROGRAMA | J23: Nación | K23: CSF | L23: 14 | M23: 1187702973 | N23: 1184057929 | O23: 3645044 | P23: 1052329265 | Q23: 27297780 | R23: 0 | S23: 0 | T23: 0.8860205699 | U23: 0.02298367573
T24: 0 | U24: 0

Sheet INFORME
I2: DEFENSORÍA DEL PUEBLO
I3: INFORME DE EJECUCIÓN PRESUPUESTAL
I4: VIGENCIA ACTUAL
I5: PERÍODO: 01-ENERO-2022 A 28-FEBRERO-2022
I6: LEY 2159 DE 2021 - DECRETO 1793 DE 2021
A10: DESCRIPCION | M10: APR. VIGENTE | N10: CDP | O10: APR. DISPONIBLE | P10: COMPROMISO | Q10: OBLIGACION | R10: ORDEN PAGO | S10: PAGOS | T10: % EJECUCIÓN COMPROMETIDA | U10: %EJECUCIÓN OBLIGADA
A11: A | D11: PRESUPUESTO DE FUNCIONAMIENTO | M11: =+M37+M38+M39 -> 680086695598 | N11: 4.647095286e+11 | O11: 2.15377167e+11 | P11: 1.931419836e+11 | Q11: 4.898245876e+10 | R11: 4.79718255e+10 | S11: 4.797084284e+10 | T11: =P11/M11 -> 0.2839961211 | U11: =Q11/M11 -> 0.07202384502
A12: B | D12: SERVICIO DE LA DEUDA PÚBLICA | M12: =+M138 -> 247291740 | N12: 0 | O12: 247291740 | P12: 0 | Q12: 0 | R12: 0 | S12: 0
A13: C | D13: PRESUPUESTO DE INVERSIÓN UNIDAD 25-02-00 | M13: =+M142+M143+M144 -> 56375679763 | N13: 39370922969 | O13: 17004756794 | P13: 26745346190 | Q13: 481854744.7 | R13: 472408417.7 | S13: 472408417.7 | T13: =P13/M13 -> 0.4744128373 | U13: =Q13/M13 -> 0.008547209483
A14: A+C | D14: TOTAL PRESUPUESTO UNIDAD 25-02-00 | M14: =+M11+M13+M12 -> 736709667101 | N14: =+N11+N13+N12 -> 5.040804516e+11 | O14: 2.326292155e+11 | P14: 2.198873297e+11 | Q14: 4.946431351e+10 | R14: 4.844423392e+10 | S14: 4.844325126e+10 | T14: 0.2984721656 | U14: 0.06714220773
A15: C | D15: PRESUPUESTO INVERSIÓN SUBUNIDAD 25-02-00-001 | M15: =+M230 -> 14000000000 | N15: =+N230 -> 8338912095 | O15: 5661087905 | P15: 7820258147 | Q15: 41695779.52 | R15: 0 | S15: 0 | T15: 0.5585898676 | U15: 0.002978269966
A16: A+B+C | D16: TOTAL PRESUPUESTO DESAGREGADO | M16: =+M14+M15 -> 750709667101 | N16: =+N14+N15 -> 5.124193637e+11 | O16: 2.382903034e+11 | P16: 2.277075879e+11 | Q16: 4.950600929e+10 | R16: 4.844423392e+10 | S16: 4.844325126e+10 | T16: 0.3033231059 | U16: 0.06594561314
A17: A+C | D17: APROPIACIÓN BLOQUEADA (LEVANTAMIENTO PREVIO CONCEPTO DGPPN) | M17: 45686726402 | N17: 0 | O17: 0 | P17: 0 | Q17: 0 | R17: 0 | S17: 0 | T17: =P17/M17 -> 0 | U17: =Q17/M17 -> 0
A18: A+B+C | D18: TOTAL PRESUPUESTO DEFENSORÍA DEL PUEBLO | M18: =+M16+M17 -> 796396393503 | N18: =+N16+N17 -> 5.124193637e+11 | O18: 2.382903034e+11 | P18: 2.277075879e+11 | Q18: 4.950600929e+10 | R18: 4.844423392e+10 | S18: 4.844325126e+10 | T18: 0.2859224247 | U18: 0.0621625232
A21: DESCRIPCION | M21: APR. VIGENTE | N21: CDP | O21: APR. DISPONIBLE | P21: COMPROMISO | Q21: OBLIGACION | R21: ORDEN PAGO | S21: PAGOS | T21: % EJECUCIÓN COMPROMETIDA | U21: %EJECUCIÓN OBLIGADA
A22: A-01 | D22: GASTOS DE PERSONAL | M22: =+M41 -> 237025946000 | N22: =+N41 -> 236845946000 | O22: 180000000 | P22: 32024098322 | Q22: 32021983709 | R22: 32021983709 | S22: 32021983709 | T22: =P22/M22 -> 0.1351079865 | U22: =Q22/M22 -> 0.1350990651
A23: A-02 | D23: ADQUISICIÓN DE BIENES Y SERVICIOS | M23: =+M67 -> 52344273598 | N23: =+N67 -> 4.298419053e+10 | O23: 9360083069 | P23: 2.656893309e+10 | Q23: 1178649736 | R23: 1131507673 | S23: 1130525013 | T23: =P23/M23 -> 0.50758051 | U23: =Q23/M23 -> 0.02251726226
A24: A-03 | D24: TRANSFERENCIAS CORRIENTES | M24: =+M114+M115 -> 388350399000 | N24: =+N114+N115 -> 1.843943921e+11 | O24: 2.039560069e+11 | P24: 1.344130145e+11 | Q24: 1.564588769e+10 | R24: 1.46823965e+10 | S24: 1.46823965e+10 | T24: 0.3461127241 | U24: 0.04028806906
A25: A-08 | D25: GASTOS POR TRIBUTOS, MULTAS, SANCIONES E INTERESES DE MORA | M25: =+M130+M131 -> 2366077000 | N25: =+N130+N131 -> 485000000 | O25: 1881077000 | P25: 135937622 | Q25: 135937622 | R25: 135937622 | S25: 135937622 | T25: 0.05745274647 | U25: 0.05745274647
A26: A | D26: TOTAL PRESUPUESTO DE FUNCIONAMIENTO | M26: =SUM(M22:M25) -> 680086695598 | N26: =SUM(N22:N25) -> 4.647095286e+11 | O26: 2.15377167e+11 | P26: 1.931419836e+11 | Q26: 4.898245876e+10 | R26: 4.79718255e+10 | S26: 4.797084284e+10 | T26: 0.2839961211 | U26: 0.07202384502
A27: B | D27: SERVICIO DE LA DEUDA PÚBLICA | M27: =+M12 -> 247291740 | N27: =+N12 -> 0 | O27: =+O12 -> 247291740 | P27: =+P12 -> 0 | Q27: =+Q12 -> 0 | R27: =+R12 -> 0 | S27: =+S12 -> 0 | T27: =P27/M27 -> 0 | U27: =Q27/M27 -> 0
A28: C-2502 C-2599 | D28: INVERSIÓN UNIDAD 25-02-00 | M28: =+M142+M143+M144 -> 56375679763 | N28: =+N142+N143+N144 -> 39370922969 | O28: 17004756794 | P28: 26745346190 | Q28: 481854744.7 | R28: 472408417.7 | S28: 472408417.7 | T28: 0.4744128373 | U28: 0.008547209483
A29: C-2599 | D29: INVERSIÓN SUBUNIDAD 25-02-00-001 | M29: =+M230 -> 14000000000 | N29: =+N230 -> 8338912095 | O29: 5661087905 | P29: 7820258147 | Q29: 41695779.52 | R29: 0 | S29: 0 | T29: 0.5585898676 | U29: 0.002978269966
A30: C | D30: TOTAL PRESUPUESTO DE INVERSIÓN | M30: =+M28+M29 -> 70375679763 | N30: =+N28+N29 -> 47709835064 | O30: 22665844699 | P30: 34565604337 | Q30: 523550524.2 | R30: 472408417.7 | S30: 472408417.7 | T30: 0.4911583725 | U30: 0.007439367207
A31: A+B+C | D31: TOTAL EJECUCIÓN PRESUPUESTO DESAGREGADO | M31: =+M26+M27+M30 -> 750709667101 | N31: =+N26+N27+N30 -> 5.124193637e+11 | O31: 2.382903034e+11 | P31: 2.277075879e+11 | Q31: 4.950600929e+10 | R31: 4.844423392e+10 | S31: 4.844325126e+10 | T31: 0.3033231059 | U31: 0.06594561314
A32: A+C | D32: APROPIACIÓN BLOQUEADA (LEVANTAMIENTO PREVIO CONCEPTO DGPPN) | M32: 45686726402 | N32: 0 | O32: 0 | P32: 0 | Q32: 0 | R32: 0 | S32: 0 | T32: 0 | U32: 0
A33: A+B+C | D33: TOTAL PRESUPUESTO DEFENSORÍA DEL PUEBLO | M33: =+M31+M32 -> 796396393503 | N33: =+N31+N32 -> 5.124193637e+11 | O33: 2.382903034e+11 | P33: 2.277075879e+11 | Q33: 4.950600929e+10 | R33: 4.844423392e+10 | S33: 4.844325126e+10 | T33: =P33/M33 -> 0.2859224247 | U33: =Q33/M33 -> 0.0621625232
M34: =+M33-M18 -> 0 | N34: =+N33-N18 -> 0 | O34: =+O33-O18 -> 0 | P34: =+P33-P18 -> 0 | Q34: =+Q33-Q18 -> 0 | R34: =+R33-R18 -> 0 | S34: =+S33-S18 -> 0
A36: TIPO | B36: CTA | C36: SUBC | D36: OBJG | E36: ORD | F36: SORD | G36: ITEM | H36: S. ITEM | I36: CONCEPTO | J36: FUENTE | K36: SITUACION | L36: REC. | M36: APR. VIGENTE | N36: CDP | O36: APR. DISPONIBLE | P36: COMPROMISO | Q36: OBLIGACION | R36: ORDEN PAGO | S36: PAGOS | T36: % EJECUCIÓN COMPROMETIDA | U36: %EJECUCIÓN OBLIGADA
A37: A | I37: FUNCIONAMIENTO | J37: Nación | K37: CSF | L37: 10 | M37: 524311028598 | N37: 4.300941704e+11 | O37: 9.42168582e+10 | P37: 1.906518715e+11 | Q37: 4.739868048e+10 | R37: 4.689088825e+10 | S37: 4.688990559e+10 | T37: =+IFERROR(P37/M37,0) -> 0.3636236148 | U37: =+IFERROR(Q37/M37,0) -> 0.09040183763
A38: A | I38: FUNCIONAMIENTO | J38: Nación | K38: SSF | L38: 11 | M38: 1881077000 | N38: 0 | O38: 1881077000 | P38: 0 | Q38: 0 | R38: 0 | S38: 0 | T38: =+IFERROR(P38/M38,0) -> 0 | U38: =+IFERROR(Q38/M38,0) -> 0
A39: A | I39: FUNCIONAMIENTO | J39: Nación | K39: SSF | L39: 16 | M39: 153894590000 | N39: 34615358209 | O39: 119279231791 | P39: 2490112065 | Q39: 1583778284 | R39: 1080937251 | S39: 1080937251 | T39: 0.01618063419 | U39: 0.01029131878
A40: A | B40: 01 | I40: GASTOS DE PERSONAL | J40: Nación | K40: CSF | L40: 10 | M40: 237025946000 | N40: 236845946000 | O40: 180000000 | P40: 32024098322 | Q40: 32021983709 | R40: 32021983709 | S40: 32021983709 | T40: 0.1351079865 | U40: 0.1350990651
A41: A | B41: 01 | C41: 01 | I41: PLANTA DE PERSONAL PERMANENTE | J41: Nación | K41: CSF | L41: 10 | M41: 237025946000 | N41: 236845946000 | O41: 180000000 | P41: 32024098322 | Q41: 32021983709 | R41: 32021983709 | S41: 32021983709 | T41: 0.1351079865 | U41: 0.1350990651
A42: A | B42: 01 | C42: 01 | D42: 01 | I42: SALARIO | J42: Nación | K42: CSF | L42: 10 | M42: 162055267000 | N42: 162055267000 | O42: 0 | P42: 21729108109 | Q42: 21726993496 | R42: 21726993496 | S42: 21726993496 | T42: 0.1340845534 | U42: 0.1340715047
A43: A | B43: 01 | C43: 01 | D43: 01 | E43: 001 | I43: FACTORES SALARIALES COMUNES | J43: Nación | K43: CSF | L43: 10 | M43: 162055267000 | N43: 162055267000 | O43: 0 | P43: 21729108109 | Q43: 21726993496 | R43: 21726993496 | S43: 21726993496 | T43: 0.1340845534 | U43: 0.1340715047
A44: A | B44: 01 | C44: 01 | D44: 01 | E44: 001 | F44: 001 | I44: SUELDO BÁSICO | J44: Nación | K44: CSF | L44: 10 | M44: 125655267000 | N44: 125655267000 | O44: 0 | P44: 19257104071 | Q44: 19254989458 | R44: 19254989458 | S44: 19254989458 | T44: 0.1532534571 | U44: 0.1532366284
A45: A | B45: 01 | C45: 01 | D45: 01 | E45: 001 | F45: 002 | I45: GASTOS DE REPRESENTACIÓN | J45: Nación | K45: CSF | L45: 10 | M45: 4700000000 | N45: 4700000000 | O45: 0 | P45: 722702400 | Q45: 722702400 | R45: 722702400 | S45: 722702400 | T45: 0.1537664681 | U45: 0.1537664681
A46: A | B46: 01 | C46: 01 | D46: 01 | E46: 001 | F46: 006 | I46: PRIMA DE SERVICIO | J46: Nación | K46: CSF | L46: 10 | M46: 6500000000 | N46: 6500000000 | O46: 0 | P46: 39245499 | Q46: 39245499 | R46: 39245499 | S46: 39245499 | T46: 0.006037769077 | U46: 0.006037769077
A47: A | B47: 01 | C47: 01 | D47: 01 | E47: 001 | F47: 007 | I47: BONIFICACIÓN POR SERVICIOS PRESTADOS | J47: Nación | K47: CSF | L47: 10 | M47: 4500000000 | N47: 4500000000 | O47: 0 | P47: 979495315 | Q47: 979495315 | R47: 979495315 | S47: 979495315 | T47: 0.2176656256 | U47: 0.2176656256
A48: A | B48: 01 | C48: 01 | D48: 01 | E48: 001 | F48: 008 | I48: HORAS EXTRAS, DOMINICALES, FESTIVOS Y RECARGOS | J48: Nación | K48: CSF | L48: 10 | M48: 700000000 | N48: 700000000 | O48: 0 | P48: 27738937 | Q48: 27738937 | R48: 27738937 | S48: 27738937 | T48: 0.03962705286 | U48: 0.03962705286
A49: A | B49: 01 | C49: 01 | D49: 01 | E49: 001 | F49: 009 | I49: PRIMA DE NAVIDAD | J49: Nación | K49: CSF | L49: 10 | M49: 13500000000 | N49: 13500000000 | O49: 0 | P49: 7764113 | Q49: 7764113 | R49: 7764113 | S49: 7764113 | T49: 0.0005751194815 | U49: 0.0005751194815
A50: A | B50: 01 | C50: 01 | D50: 01 | E50: 001 | F50: 010 | I50: PRIMA DE VACACIONES | J50: Nación | K50: CSF | L50: 10 | M50: 6500000000 | N50: 6500000000 | O50: 0 | P50: 695057774 | Q50: 695057774 | R50: 695057774 | S50: 695057774 | T50: 0.1069319652 | U50: 0.1069319652
A51: A | B51: 01 | C51: 01 | D51: 02 | I51: CONTRIBUCIONES INHERENTES A LA NÓMINA | J51: Nación | K51: CSF | L51: 10 | M51: 60258109000 | N51: 60078109000 | O51: 180000000 | P51: 8495645543 | Q51: 8495645543 | R51: 8495645543 | S51: 8495645543 | T51: 0.1409875896 | U51: 0.1409875896
A52: A | B52: 01 | C52: 01 | D52: 02 | E52: 001 | I52: APORTES A LA SEGURIDAD SOCIAL EN PENSIONES | J52: Nación | K52: CSF | L52: 10 | M52: 17100000000 | N52: 16920000000 | O52: 180000000 | P52: 2953146300 | Q52: 2953146300 | R52: 2953146300 | S52: 2953146300 | T52: 0.172698614 | U52: 0.172698614
A53: A | B53: 01 | C53: 01 | D53: 02 | E53: 002 | I53: APORTES A LA SEGURIDAD SOCIAL EN SALUD | J53: Nación | K53: CSF | L53: 10 | M53: 12100000000 | N53: 12100000000 | O53: 0 | P53: 2096122700 | Q53: 2096122700 | R53: 2096122700 | S53: 2096122700 | T53: 0.173233281 | U53: 0.173233281
A54: A | B54: 01 | C54: 01 | D54: 02 | E54: 003 | I54: AUXILIO DE CESANTÍAS | J54: Nación | K54: CSF | L54: 10 | M54: 14158109000 | N54: 14158109000 | O54: 0 | P54: 1148890243 | Q54: 1148890243 | R54: 1148890243 | S54: 1148890243 | T54: 0.08114715341 | U54: 0.08114715341
A55: A | B55: 01 | C55: 01 | D55: 02 | E55: 004 | I55: APORTES A CAJAS DE COMPENSACIÓN FAMILIAR | J55: Nación | K55: CSF | L55: 10 | M55: 6800000000 | N55: 6800000000 | O55: 0 | P55: 920377200 | Q55: 920377200 | R55: 920377200 | S55: 920377200 | T55: 0.1353495882 | U55: 0.1353495882
A56: A | B56: 01 | C56: 01 | D56: 02 | E56: 005 | I56: APORTES GENERALES AL SISTEMA DE RIESGOS LABORALES | J56: Nación | K56: CSF | L56: 10 | M56: 1700000000 | N56: 1700000000 | O56: 0 | P56: 225987600 | Q56: 225987600 | R56: 225987600 | S56: 225987600 | T56: 0.1329338824 | U56: 0.1329338824
A57: A | B57: 01 | C57: 01 | D57: 02 | E57: 006 | I57: APORTES AL ICBF | J57: Nación | K57: CSF | L57: 10 | M57: 5000000000 | N57: 5000000000 | O57: 0 | P57: 690359100 | Q57: 690359100 | R57: 690359100 | S57: 690359100 | T57: 0.13807182 | U57: 0.13807182
A58: A | B58: 01 | C58: 01 | D58: 02 | E58: 007 | I58: APORTES AL SENA | J58: Nación | K58: CSF | L58: 10 | M58: 850000000 | N58: 850000000 | O58: 0 | P58: 115237700 | Q58: 115237700 | R58: 115237700 | S58: 115237700 | T58: 0.1355737647 | U58: 0.1355737647
A59: A | B59: 01 | C59: 01 | D59: 02 | E59: 008 | I59: APORTES A LA ESAP | J59: Nación | K59: CSF | L59: 10 | M59: 850000000 | N59: 850000000 | O59: 0 | P59: 115237700 | Q59: 115237700 | R59: 115237700 | S59: 115237700 | T59: 0.1355737647 | U59: 0.1355737647
A60: A | B60: 01 | C60: 01 | D60: 02 | E60: 009 | I60: APORTES A ESCUELAS INDUSTRIALES E INSTITUTOS TÉCNICOS | J60: Nación | K60: CSF | L60: 10 | M60: 1700000000 | N60: 1700000000 | O60: 0 | P60: 230287000 | Q60: 230287000 | R60: 230287000 | S60: 230287000 | T60: 0.1354629412 | U60: 0.1354629412
A61: A | B61: 01 | C61: 01 | D61: 03 | I61: REMUNERACIONES NO CONSTITUTIVAS DE FACTOR SALARIAL | J61: Nación | K61: CSF | L61: 10 | M61: 14712570000 | N61: 14712570000 | O61: 0 | P61: 1799344670 | Q61: 1799344670 | R61: 1799344670 | S61: 1799344670 | T61: 0.1222998205 | U61: 0.1222998205
A62: A | B62: 01 | C62: 01 | D62: 03 | E62: 001 | I62: PRESTACIONES SOCIALES SEGÚN DEFINICIÓN LEGAL | J62: Nación | K62: CSF | L62: 10 | M62: 9412570000 | N62: 9412570000 | O62: 0 | P62: 1018538005 | Q62: 1018538005 | R62: 1018538005 | S62: 1018538005 | T62: 0.1082104043 | U62: 0.1082104043
A63: A | B63: 01 | C63: 01 | D63: 03 | E63: 001 | F63: 001 | I63: VACACIONES | J63: Nación | K63: CSF | L63: 10 | M63: 8602570000 | N63: 8602570000 | O63: 0 | P63: 889578905 | Q63: 889578905 | R63: 889578905 | S63: 889578905 | T63: 0.1034085052 | U63: 0.1034085052
A64: A | B64: 01 | C64: 01 | D64: 03 | E64: 001 | F64: 002 | I64: INDEMNIZACIÓN POR VACACIONES | J64: Nación | K64: CSF | L64: 10 | M64: 810000000 | N64: 810000000 | O64: 0 | P64: 128959100 | Q64: 128959100 | R64: 128959100 | S64: 128959100 | T64: 0.1592087654 | U64: 0.1592087654
A65: A | B65: 01 | C65: 01 | D65: 03 | E65: 002 | I65: PRIMA TÉCNICA NO SALARIAL | J65: Nación | K65: CSF | L65: 10 | M65: 2200000000 | N65: 2200000000 | O65: 0 | P65: 310771934 | Q65: 310771934 | R65: 310771934 | S65: 310771934 | T65: 0.14125997 | U65: 0.14125997
A66: A | B66: 01 | C66: 01 | D66: 03 | E66: 082 | I66: PRIMA ESPECIAL DE SERVICIOS | J66: Nación | K66: CSF | L66: 10 | M66: 3100000000 | N66: 3100000000 | O66: 0 | P66: 470034731 | Q66: 470034731 | R66: 470034731 | S66: 470034731 | T66: 0.1516241068 | U66: 0.1516241068
A67: A | B67: 02 | I67: ADQUISICIÓN DE BIENES Y SERVICIOS | J67: Nación | K67: CSF | L67: 10 | M67: 52344273598 | N67: 4.298419053e+10 | O67: 9360083069 | P67: 2.656893309e+10 | Q67: 1178649736 | R67: 1131507673 | S67: 1130525013 | T67: 0.50758051 | U67: 0.02251726226
A68: A | B68: 02 | C68: 01 | I68: ADQUISICIÓN DE ACTIVOS NO FINANCIEROS | J68: Nación | K68: CSF | L68: 10 | M68: 920000000 | N68: 920000000 | O68: 0 | P68: 120000000 | Q68: 0 | R68: 0 | S68: 0 | T68: 0.1304347826 | U68: 0
A69: A | B69: 02 | C69: 01 | D69: 01 | I69: ACTIVOS FIJOS | J69: Nación | K69: CSF | L69: 10 | M69: 920000000 | N69: 920000000 | O69: 0 | P69: 120000000 | Q69: 0 | R69: 0 | S69: 0 | T69: 0.1304347826 | U69: 0
A70: A | B70: 02 | C70: 01 | D70: 01 | E70: 004 | I70: MAQUINARIA Y EQUIPO | J70: Nación | K70: CSF | L70: 10 | M70: 800000000 | N70: 800000000 | O70: 0 | P70: 0 | Q70: 0 | R70: 0 | S70: 0 | T70: 0 | U70: 0
A71: A | B71: 02 | C71: 01 | D71: 01 | E71: 004 | F71: 009 | I71: EQUIPO DE TRANSPORTE | J71: Nación | K71: CSF | L71: 10 | M71: 800000000 | N71: 800000000 | O71: 0 | P71: 0 | Q71: 0 | R71: 0 | S71: 0 | T71: 0 | U71: 0
A72: A | B72: 02 | C72: 01 | D72: 01 | E72: 006 | I72: OTROS ACTIVOS FIJOS | J72: Nación | K72: CSF | L72: 10 | M72: 120000000 | N72: 120000000 | O72: 0 | P72: 120000000 | Q72: 0 | R72: 0 | S72: 0 | T72: 1 | U72: 0
A73: A | B73: 02 | C73: 01 | D73: 01 | E73: 006 | F73: 002 | I73: PRODUCTOS DE LA PROPIEDAD INTELECTUAL | J73: Nación | K73: CSF | L73: 10 | M73: 120000000 | N73: 120000000 | O73: 0 | P73: 120000000 | Q73: 0 | R73: 0 | S73: 0 | T73: 1 | U73: 0
A74: A | B74: 02 | C74: 02 | I74: ADQUISICIONES DIFERENTES DE ACTIVOS | J74: Nación | K74: CSF | L74: 10 | M74: 51424273598 | N74: 4.206419053e+10 | O74: 9360083069 | P74: 2.644893309e+10 | Q74: 1178649736 | R74: 1131507673 | S74: 1130525013 | T74: 0.5143277919 | U74: 0.02292010473
A75: A | B75: 02 | C75: 02 | D75: 01 | I75: MATERIALES Y SUMINISTROS | J75: Nación | K75: CSF | L75: 10 | M75: 4333355057 | N75: 3016459989 | O75: 1316895068 | P75: 2356922587 | Q75: 2000000 | R75: 2000000 | S75: 2000000 | T75: 0.5439024858 | U75: 0.0004615361478
A76: A | B76: 02 | C76: 02 | D76: 01 | E76: 002 | I76: PRODUCTOS ALIMENTICIOS, BEBIDAS Y TABACO; TEXTILES, PRENDAS DE VESTIR Y PRODUCTOS DE CUERO | J76: Nación | K76: CSF | L76: 10 | M76: 165000000 | N76: 65000000 | O76: 100000000 | P76: 0 | Q76: 0 | R76: 0 | S76: 0 | T76: 0 | U76: 0
A77: A | B77: 02 | C77: 02 | D77: 01 | E77: 002 | F77: 003 | I77: PRODUCTOS DE MOLINERÍA, ALMIDONES Y PRODUCTOS DERIVADOS DEL ALMIDÓN; OTROS PRODUCTOS ALIMENTICIOS | J77: Nación | K77: CSF | L77: 10 | M77: 100000000 | N77: 0 | O77: 100000000 | P77: 0 | Q77: 0 | R77: 0 | S77: 0 | T77: 0 | U77: 0
A78: A | B78: 02 | C78: 02 | D78: 01 | E78: 002 | F78: 007 | I78: ARTÍCULOS TEXTILES (EXCEPTO PRENDAS DE VESTIR) | J78: Nación | K78: CSF | L78: 10 | M78: 0 | N78: 0 | O78: 0 | P78: 0 | Q78: 0 | R78: 0 | S78: 0 | T78: 0 | U78: 0
A79: A | B79: 02 | C79: 02 | D79: 01 | E79: 002 | F79: 008 | I79: DOTACIÓN (PRENDAS DE VESTIR Y CALZADO) | J79: Nación | K79: CSF | L79: 10 | M79: 65000000 | N79: 65000000 | O79: 0 | P79: 0 | Q79: 0 | R79: 0 | S79: 0 | T79: 0 | U79: 0
A80: A | B80: 02 | C80: 02 | D80: 01 | E80: 003 | I80: OTROS BIENES TRANSPORTABLES (EXCEPTO PRODUCTOS METÁLICOS, MAQUINARIA Y EQUIPO) | J80: Nación | K80: CSF | L80: 10 | M80: 470855000 | N80: 185854932 | O80: 285000068 | P80: 17000000 | Q80: 2000000 | R80: 2000000 | S80: 2000000 | T80: 0.03610453324 | U80: 0.004247592146
A81: A | B81: 02 | C81: 02 | D81: 01 | E81: 003 | F81: 002 | I81: PASTA O PULPA, PAPEL Y PRODUCTOS DE PAPEL; IMPRESOS Y ARTÍCULOS RELACIONADOS | J81: Nación | K81: CSF | L81: 10 | M81: 115750000 | N81: 15750000 | O81: 100000000 | P81: 15750000 | Q81: 750000 | R81: 750000 | S81: 750000 | T81: 0.1360691145 | U81: 0.006479481641
A82: A | B82: 02 | C82: 02 | D82: 01 | E82: 003 | F82: 003 | I82: PRODUCTOS DE HORNOS DE COQUE; PRODUCTOS DE REFINACIÓN DE PETRÓLEO Y COMBUSTIBLE NUCLEAR | J82: Nación | K82: CSF | L82: 10 | M82: 100350000 | N82: 100350000 | O82: 0 | P82: 350000 | Q82: 350000 | R82: 350000 | S82: 350000 | T82: 0.003487792725 | U82: 0.003487792725
A83: A | B83: 02 | C83: 02 | D83: 01 | E83: 003 | F83: 005 | I83: OTROS PRODUCTOS QUÍMICOS; FIBRAS ARTIFICIALES (O FIBRAS INDUSTRIALES HECHAS POR EL HOMBRE) | J83: Nación | K83: CSF | L83: 10 | M83: 900000 | N83: 900000 | O83: 0 | P83: 900000 | Q83: 900000 | R83: 900000 | S83: 900000 | T83: 1 | U83: 1
A84: A | B84: 02 | C84: 02 | D84: 01 | E84: 003 | F84: 008 | I84: OTROS BIENES TRANSPORTABLES N.C.P. | J84: Nación | K84: CSF | L84: 10 | M84: 253855000 | N84: 68854932 | O84: 185000068 | P84: 0 | Q84: 0 | R84: 0 | S84: 0 | T84: 0 | U84: 0
A85: A | B85: 02 | C85: 02 | D85: 01 | E85: 004 | I85: PRODUCTOS METÁLICOS Y PAQUETES DE SOFTWARE | J85: Nación | K85: CSF | L85: 10 | M85: 3697500057 | N85: 2765605057 | O85: 931895000 | P85: 2339922587 | Q85: 0 | R85: 0 | S85: 0 | T85: 0.6328390943 | U85: 0
A86: A | B86: 02 | C86: 02 | D86: 01 | E86: 004 | F86: 004 | I86: MAQUINARIA PARA USOS ESPECIALES | J86: Nación | K86: CSF | L86: 10 | M86: 26145000 | N86: 0 | O86: 26145000 | P86: 0 | Q86: 0 | R86: 0 | S86: 0 | T86: 0 | U86: 0
A87: A | B87: 02 | C87: 02 | D87: 01 | E87: 004 | F87: 005 | I87: MAQUINARIA DE OFICINA, CONTABILIDAD E INFORMÁTICA | J87: Nación | K87: CSF | L87: 10 | M87: 655750000 | N87: 0 | O87: 655750000 | P87: 0 | Q87: 0 | R87: 0 | S87: 0 | T87: 0 | U87: 0
A88: A | B88: 02 | C88: 02 | D88: 01 | E88: 004 | F88: 006 | I88: MAQUINARIA Y APARATOS ELÉCTRICOS | J88: Nación | K88: CSF | L88: 10 | M88: 100000000 | N88: 0 | O88: 100000000 | P88: 0 | Q88: 0 | R88: 0 | S88: 0 | T88: 0 | U88: 0
A89: A | B89: 02 | C89: 02 | D89: 01 | E89: 004 | F89: 007 | I89: EQUIPO Y APARATOS DE RADIO, TELEVISIÓN Y COMUNICACIONES | J89: Nación | K89: CSF | L89: 10 | M89: 2915605057 | N89: 2765605057 | O89: 150000000 | P89: 2339922587 | Q89: 0 | R89: 0 | S89: 0 | T89: 0.8025512858 | U89: 0
A90: A | B90: 02 | C90: 02 | D90: 02 | I90: ADQUISICIÓN DE SERVICIOS | J90: Nación | K90: CSF | L90: 10 | M90: 47090918541 | N90: 3.904773054e+10 | O90: 8043188001 | P90: 2.40920105e+10 | Q90: 1176649736 | R90: 1129507673 | S90: 1128525013 | T90: 0.5116062979 | U90: 0.02498676545
A91: A | B91: 02 | C91: 02 | D91: 02 | E91: 005 | I91: SERVICIOS DE LA CONSTRUCCIÓN | J91: Nación | K91: CSF | L91: 10 | M91: 7348700 | N91: 7348700 | O91: 0 | P91: 7348700 | Q91: 7348700 | R91: 7348700 | S91: 7348700 | T91: 1 | U91: 1
A92: A | B92: 02 | C92: 02 | D92: 02 | E92: 005 | F92: 004 | I92: SERVICIOS DE CONSTRUCCIÓN | J92: Nación | K92: CSF | L92: 10 | M92: 7348700 | N92: 7348700 | O92: 0 | P92: 7348700 | Q92: 7348700 | R92: 7348700 | S92: 7348700 | T92: 1 | U92: 1
A93: A | B93: 02 | C93: 02 | D93: 02 | E93: 006 | I93: SERVICIOS DE ALOJAMIENTO; SERVICIOS DE SUMINISTRO DE COMIDAS Y BEBIDAS; SERVICIOS DE TRANSPORTE; Y SERVICIOS DE DISTRIBUCIÓN DE ELECTRICIDAD, GAS Y AGUA | J93: Nación | K93: CSF | L93: 10 | M93: 5227513824 | N93: 1292153780 | O93: 3935360044 | P93: 521311851 | Q93: 236166428 | R93: 235299828 | S93: 234409545 | T93: 0.09972462409 | U93: 0.04517758077
A94: A | B94: 02 | C94: 02 | D94: 02 | E94: 006 | F94: 003 | I94: ALOJAMIENTO; SERVICIOS DE SUMINISTROS DE COMIDAS Y BEBIDAS | J94: Nación | K94: CSF | L94: 10 | M94: 289993824 | N94: 119993824 | O94: 170000000 | P94: 74240218 | Q94: 65274505 | R94: 65274505 | S94: 64384222 | T94: 0.2560062038 | U94: 0.2250892936
A95: A | B95: 02 | C95: 02 | D95: 02 | E95: 006 | F95: 004 | I95: SERVICIOS DE TRANSPORTE DE PASAJEROS | J95: Nación | K95: CSF | L95: 10 | M95: 1758920000 | N95: 222920000 | O95: 1536000000 | P95: 40028000 | Q95: 22328698 | R95: 22328698 | S95: 22328698 | T95: 0.02275714643 | U95: 0.01269455006
A96: A | B96: 02 | C96: 02 | D96: 02 | E96: 006 | F96: 007 | I96: SERVICIOS DE APOYO AL TRANSPORTE | J96: Nación | K96: CSF | L96: 10 | M96: 130000000 | N96: 102000000 | O96: 28000000 | P96: 33511000 | Q96: 11806184 | R96: 11646184 | S96: 11646184 | T96: 0.2577769231 | U96: 0.0908168
A97: A | B97: 02 | C97: 02 | D97: 02 | E97: 006 | F97: 008 | I97: SERVICIOS POSTALES Y DE MENSAJERÍA | J97: Nación | K97: CSF | L97: 10 | M97: 1733000000 | N97: 231639956 | O97: 1501360044 | P97: 231639956 | Q97: 100000 | R97: 100000 | S97: 100000 | T97: 0.1336641408 | U97: 5.77034045e-05
A98: A | B98: 02 | C98: 02 | D98: 02 | E98: 006 | F98: 009 | I98: SERVICIOS DE DISTRIBUCIÓN DE ELECTRICIDAD, GAS Y AGUA (POR CUENTA PROPIA) | J98: Nación | K98: CSF | L98: 10 | M98: 1315600000 | N98: 615600000 | O98: 700000000 | P98: 141892677 | Q98: 136657041 | R98: 135950441 | S98: 135950441 | T98: 0.1078539655 | U98: 0.1038743091
A99: A | B99: 02 | C99: 02 | D99: 02 | E99: 007 | I99: SERVICIOS FINANCIEROS Y SERVICIOS CONEXOS, SERVICIOS INMOBILIARIOS Y SERVICIOS DE LEASING | J99: Nación | K99: CSF | L99: 10 | M99: 2900507314 | N99: 1888688237 | O99: 1011819077 | P99: 1632370291 | Q99: 213868433.3 | R99: 175173568.7 | S99: 175173568.7 | T99: 0.5627878555 | U99: 0.07373483675
A100: A | B100: 02 | C100: 02 | D100: 02 | E100: 007 | F100: 001 | I100: SERVICIOS FINANCIEROS Y SERVICIOS CONEXOS | J100: Nación | K100: CSF | L100: 10 | M100: 275000000 | N100: 257913616 | O100: 17086384 | P100: 257913616 | Q100: 0 | R100: 0 | S100: 0 | T100: 0.9378676945 | U100: 0
A101: A | B101: 02 | C101: 02 | D101: 02 | E101: 007 | F101: 002 | I101: SERVICIOS INMOBILIARIOS | J101: Nación | K101: CSF | L101: 10 | M101: 2197407314 | N101: 1266932202 | O101: 930475111.8 | P101: 1010614256 | Q101: 213868433.3 | R101: 175173568.7 | S101: 175173568.7 | T101: 0.45991212 | U101: 0.0973276242
A102: A | B102: 02 | C102: 02 | D102: 02 | E102: 007 | F102: 003 | I102: SERVICIOS DE ARRENDAMIENTO O ALQUILER SIN OPERARIO | J102: Nación | K102: CSF | L102: 10 | M102: 428100000 | N102: 363842419 | O102: 64257581 | P102: 363842419 | Q102: 0 | R102: 0 | S102: 0 | T102: =+IFERROR(P102/M102,0) -> 0.8499005349 | U102: =+IFERROR(Q102/M102,0) -> 0
A103: A | B103: 02 | C103: 02 | D103: 02 | E103: 008 | I103: SERVICIOS PRESTADOS A LAS EMPRESAS Y SERVICIOS DE PRODUCCIÓN | J103: Nación | K103: CSF | L103: 10 | M103: 31184495803 | N103: 30359243234 | O103: 825252569 | P103: 16983886274 | Q103: 512265459.1 | R103: 512265459.1 | S103: 512265459.1 | T103: 0.5446259699 | U103: 0.01642692774
A104: A | B104: 02 | C104: 02 | D104: 02 | E104: 008 | F104: 002 | I104: SERVICIOS JURÍDICOS Y CONTABLES | J104: Nación | K104: CSF | L104: 10 | M104: 7904300000 | N104: 7711862500 | O104: 192437500 | P104: 6177446666 | Q104: 208439997.7 | R104: 208439997.7 | S104: 208439997.7 | T104: 0.7815298845 | U104: 0.02637045629
A105: A | B105: 02 | C105: 02 | D105: 02 | E105: 008 | F105: 003 | I105: OTROS SERVICIOS PROFESIONALES, CIENTÍFICOS Y TÉCNICOS | J105: Nación | K105: CSF | L105: 10 | M105: 9237661359 | N105: 9204200000 | O105: 33461359 | P105: 6178283328 | Q105: 74056665.33 | R105: 74056665.33 | S105: 74056665.33 | T105: 0.6688146586 | U105: 0.008016819675
A106: A | B106: 02 | C106: 02 | D106: 02 | E106: 008 | F106: 004 | I106: SERVICIOS DE TELECOMUNICACIONES, TRANSMISIÓN Y SUMINISTRO DE INFORMACIÓN | J106: Nación | K106: CSF | L106: 10 | M106: 3078750000 | N106: 3076714315 | O106: 2035685 | P106: 1574145606 | Q106: 102370111 | R106: 102370111 | S106: 102370111 | T106: 0.5112937413 | U106: 0.03325054358
A107: A | B107: 02 | C107: 02 | D107: 02 | E107: 008 | F107: 005 | I107: SERVICIOS DE SOPORTE | J107: Nación | K107: CSF | L107: 10 | M107: 9091374868 | N107: 8983056843 | O107: 108318025 | P107: 2873721660 | Q107: 250000 | R107: 250000 | S107: 250000 | T107: 0.3160931874 | U107: 2.74985911e-05
A108: A | B108: 02 | C108: 02 | D108: 02 | E108: 008 | F108: 007 | I108: SERVICIOS DE MANTENIMIENTO, REPARACIÓN E INSTALACIÓN (EXCEPTO SERVICIOS DE CONSTRUCCIÓN) | J108: Nación | K108: CSF | L108: 10 | M108: 1872409576 | N108: 1383409576 | O108: 489000000 | P108: 180289014 | Q108: 127148685 | R108: 127148685 | S108: 127148685 | T108: 0.09628716725 | U108: 0.0679064488
A109: A | B109: 02 | C109: 02 | D109: 02 | E109: 009 | I109: SERVICIOS PARA LA COMUNIDAD, SOCIALES Y PERSONALES | J109: Nación | K109: CSF | L109: 10 | M109: 6213052900 | N109: 4711296589 | O109: 1501756311 | P109: 4528396018 | Q109: 32469889 | R109: 32469889 | S109: 32469889 | T109: 0.7288519977 | U109: 0.005226076379
A110: A | B110: 02 | C110: 02 | D110: 02 | E110: 009 | F110: 003 | I110: SERVICIOS PARA EL CUIDADO DE LA SALUD HUMANA Y SERVICIOS SOCIALES | J110: Nación | K110: CSF | L110: 10 | M110: 350000000 | N110: 105243689 | O110: 244756311 | P110: 105243689 | Q110: 0 | R110: 0 | S110: 0 | T110: 0.3006962543 | U110: 0
A111: A | B111: 02 | C111: 02 | D111: 02 | E111: 009 | F111: 004 | I111: SERVICIOS DE ALCANTARILLADO, RECOLECCIÓN, TRATAMIENTO Y DISPOSICIÓN DE DESECHOS Y OTROS SERVICIOS DE SANEAMIENTO AMBIENTAL | J111: Nación | K111: CSF | L111: 10 | M111: 312355000 | N111: 212355000 | O111: 100000000 | P111: 29454429 | Q111: 28771989 | R111: 28771989 | S111: 28771989 | T111: 0.09429792704 | U111: 0.09211310528
A112: A | B112: 02 | C112: 02 | D112: 02 | E112: 009 | F112: 007 | I112: OTROS SERVICIOS | J112: Nación | K112: CSF | L112: 10 | M112: 5550697900 | N112: 4393697900 | O112: 1157000000 | P112: 4393697900 | Q112: 3697900 | R112: 3697900 | S112: 3697900 | T112: 0.7915577427 | U112: 0.0006662045146
A113: A | B113: 02 | C113: 02 | D113: 02 | E113: 010 | I113: VIÁTICOS DE LOS FUNCIONARIOS EN COMISIÓN | J113: Nación | K113: CSF | L113: 10 | M113: 1558000000 | N113: 789000000 | O113: 769000000 | P113: 418697366 | Q113: 174530827 | R113: 166950228 | S113: 166857851 | T113: 0.2687402863 | U113: 0.1120223537
A114: A | B114: 03 | I114: TRANSFERENCIAS CORRIENTES | J114: Nación | K114: CSF | L114: 10 | M114: 234455809000 | N114: 1.497790339e+11 | O114: 8.467677513e+10 | P114: 1.319229025e+11 | Q114: 1.406210941e+10 | R114: 1.360145925e+10 | S114: 1.360145925e+10 | T114: 0.5626770478 | U114: 0.05997765408
A115: A | B115: 03 | I115: TRANSFERENCIAS CORRIENTES | J115: Nación | K115: SSF | L115: 16 | M115: 153894590000 | N115: 34615358209 | O115: 119279231791 | P115: 2490112065 | Q115: 1583778284 | R115: 1080937251 | S115: 1080937251 | T115: 0.01618063419 | U115: 0.01029131878
A116: A | B116: 03 | C116: 03 | I116: A ENTIDADES DEL GOBIERNO | J116: Nación | K116: CSF | L116: 10 | M116: 232805124000 | N116: 1.481283489e+11 | O116: 8.467677513e+10 | P116: 1.31660177e+11 | Q116: 1.379938393e+10 | R116: 1.333873377e+10 | S116: 1.333873377e+10 | T116: 0.5655381407 | U116: 0.05927439953
A117: A | B117: 03 | C117: 03 | I117: A ENTIDADES DEL GOBIERNO | J117: Nación | K117: SSF | L117: 16 | M117: 153894590000 | N117: 34615358209 | O117: 119279231791 | P117: 2490112065 | Q117: 1583778284 | R117: 1080937251 | S117: 1080937251 | T117: 0.01618063419 | U117: 0.01029131878
A118: A | B118: 03 | C118: 03 | D118: 01 | I118: A ÓRGANOS DEL PGN | J118: Nación | K118: CSF | L118: 10 | M118: 232805124000 | N118: 1.481283489e+11 | O118: 8.467677513e+10 | P118: 1.31660177e+11 | Q118: 1.379938393e+10 | R118: 1.333873377e+10 | S118: 1.333873377e+10 | T118: 0.5655381407 | U118: 0.05927439953
A119: A | B119: 03 | C119: 03 | D119: 01 | I119: A ÓRGANOS DEL PGN | J119: Nación | K119: SSF | L119: 16 | M119: 153894590000 | N119: 34615358209 | O119: 119279231791 | P119: 2490112065 | Q119: 1583778284 | R119: 1080937251 | S119: 1080937251 | T119: 0.01618063419 | U119: 0.01029131878
A120: A | B120: 03 | C120: 03 | D120: 01 | E120: 007 | I120: DEFENSORÍA PÚBLICA (LEY 24 DE 1992) | J120: Nación | K120: CSF | L120: 10 | M120: 232478124000 | N120: 1.478513678e+11 | O120: 8.462675621e+10 | P120: 1.314462533e+11 | Q120: 1.379938393e+10 | R120: 1.333873377e+10 | S120: 1.333873377e+10 | T120: 0.5654134292 | U120: 0.05935777395
A121: A | B121: 03 | C121: 03 | D121: 01 | E121: 008 | I121: FONDO PARA LA DEFENSA DE LOS DERECHOS E INTERESES COLECTIVOS -LEY 472 DE 1998. | J121: Nación | K121: SSF | L121: 16 | M121: 153325000000 | N121: 34615358209 | O121: 118709641791 | P121: 2490112065 | Q121: 1583778284 | R121: 1080937251 | S121: 1080937251 | T121: 0.01624074394 | U121: 0.0103295502
A122: A | B122: 03 | C122: 03 | D122: 01 | E122: 061 | I122: FONDO ESPECIAL COMISIÓN NACIONAL DE BÚSQUEDA (ART. 18 LEY 971 DE 2005) | J122: Nación | K122: SSF | L122: 16 | M122: 569590000 | N122: 0 | O122: 569590000 | P122: 0 | Q122: 0 | R122: 0 | S122: 0 | T122: 0 | U122: 0
A123: A | B123: 03 | C123: 03 | D123: 01 | E123: 068 | I123: COMISIÓN DE BÚSQUEDA DE PERSONAS DESAPARECIDAS LEY 589 DE 2000 | J123: Nación | K123: CSF | L123: 10 | M123: 327000000 | N123: 276981078 | O123: 50018922 | P123: 213923677 | Q123: 0 | R123: 0 | S123: 0 | T123: 0.6542008471 | U123: 0
A124: A | B124: 03 | C124: 03 | D124: 01 | E124: 999 | I124: OTRAS TRANSFERENCIAS - DISTRIBUCIÓN PREVIO CONCEPTO DGPPN | J124: Nación | K124: CSF | L124: 10 | M124: 0 | N124: 0 | O124: 0 | P124: 0 | Q124: 0 | R124: 0 | S124: 0 | T124: 0 | U124: 0
A125: A | B125: 03 | C125: 04 | I125: PRESTACIONES PARA CUBRIR RIESGOS SOCIALES | J125: Nación | K125: CSF | L125: 10 | M125: 1650685000 | N125: 1650685000 | O125: 0 | P125: 262725477 | Q125: 262725477 | R125: 262725477 | S125: 262725477 | T125: 0.1591614857 | U125: 0.1591614857
A126: A | B126: 03 | C126: 04 | D126: 02 | I126: PRESTACIONES SOCIALES RELACIONADAS CON EL EMPLEO | J126: Nación | K126: CSF | L126: 10 | M126: 1650685000 | N126: 1650685000 | O126: 0 | P126: 262725477 | Q126: 262725477 | R126: 262725477 | S126: 262725477 | T126: 0.1591614857 | U126: 0.1591614857
A127: A | B127: 03 | C127: 04 | D127: 02 | E127: 012 | I127: INCAPACIDADES Y LICENCIAS DE MATERNIDAD Y PATERNIDAD (NO DE PENSIONES) | J127: Nación | K127: CSF | L127: 10 | M127: 1650685000 | N127: 1650685000 | O127: 0 | P127: 262725477 | Q127: 262725477 | R127: 262725477 | S127: 262725477 | T127: 0.1591614857 | U127: 0.1591614857
A128: A | B128: 03 | C128: 04 | D128: 02 | E128: 012 | F128: 001 | I128: INCAPACIDADES (NO DE PENSIONES) | J128: Nación | K128: CSF | L128: 10 | M128: 850685000 | N128: 850685000 | O128: 0 | P128: 161628165 | Q128: 161628165 | R128: 161628165 | S128: 161628165 | T128: 0.1899976666 | U128: 0.1899976666
A129: A | B129: 03 | C129: 04 | D129: 02 | E129: 012 | F129: 002 | I129: LICENCIAS DE MATERNIDAD Y PATERNIDAD (NO DE PENSIONES) | J129: Nación | K129: CSF | L129: 10 | M129: 800000000 | N129: 800000000 | O129: 0 | P129: 101097312 | Q129: 101097312 | R129: 101097312 | S129: 101097312 | T129: 0.12637164 | U129: 0.12637164
A130: A | B130: 08 | I130: GASTOS POR TRIBUTOS, MULTAS, SANCIONES E INTERESES DE MORA | J130: Nación | K130: CSF | L130: 10 | M130: 485000000 | N130: 485000000 | O130: 0 | P130: 135937622 | Q130: 135937622 | R130: 135937622 | S130: 135937622 | T130: 0.2802837567 | U130: 0.2802837567
A131: A | B131: 08 | I131: GASTOS POR TRIBUTOS, MULTAS, SANCIONES E INTERESES DE MORA | J131: Nación | K131: SSF | L131: 11 | M131: 1881077000 | N131: 0 | O131: 1881077000 | P131: 0 | Q131: 0 | R131: 0 | S131: 0 | T131: 0 | U131: 0
A132: A | B132: 08 | C132: 01 | I132: IMPUESTOS | J132: Nación | K132: CSF | L132: 10 | M132: 485000000 | N132: 485000000 | O132: 0 | P132: 135937622 | Q132: 135937622 | R132: 135937622 | S132: 135937622 | T132: 0.2802837567 | U132: 0.2802837567
A133: A | B133: 08 | C133: 01 | D133: 02 | I133: IMPUESTOS TERRITORIALES | J133: Nación | K133: CSF | L133: 10 | M133: 485000000 | N133: 485000000 | O133: 0 | P133: 135937622 | Q133: 135937622 | R133: 135937622 | S133: 135937622 | T133: 0.2802837567 | U133: 0.2802837567
A134: A | B134: 08 | C134: 01 | D134: 02 | E134: 001 | I134: IMPUESTO PREDIAL Y SOBRETASA AMBIENTAL | J134: Nación | K134: CSF | L134: 10 | M134: 470000000 | N134: 470000000 | O134: 0 | P134: 135937622 | Q134: 135937622 | R134: 135937622 | S134: 135937622 | T134: 0.289228983 | U134: 0.289228983
A135: A | B135: 08 | C135: 01 | D135: 02 | E135: 006 | I135: IMPUESTO SOBRE VEHÍCULOS AUTOMOTORES | J135: Nación | K135: CSF | L135: 10 | M135: 15000000 | N135: 15000000 | O135: 0 | P135: 0 | Q135: 0 | R135: 0 | S135: 0 | T135: 0 | U135: 0
A136: A | B136: 08 | C136: 04 | I136: CONTRIBUCIONES | J136: Nación | K136: SSF | L136: 11 | M136: 1881077000 | N136: 0 | O136: 1881077000 | P136: 0 | Q136: 0 | R136: 0 | S136: 0 | T136: 0 | U136: 0
A137: A | B137: 08 | C137: 04 | D137: 01 | I137: CUOTA DE FISCALIZACIÓN Y AUDITAJE | J137: Nación | K137: SSF | L137: 11 | M137: 1881077000 | N137: 0 | O137: 1881077000 | P137: 0 | Q137: 0 | R137: 0 | S137: 0 | T137: 0 | U137: 0
A138: B | I138: SERVICIO DE LA DEUDA PÚBLICA | J138: Nación | K138: CSF | L138: 11 | M138: 247291740 | N138: 0 | O138: 247291740 | P138: 0 | Q138: 0 | R138: 0 | S138: 0 | T138: 0 | U138: 0
A139: B | B139: 10 | I139: SERVICIO DE LA DEUDA PÚBLICA INTERNA | J139: Nación | K139: CSF | L139: 11 | M139: 247291740 | N139: 0 | O139: 247291740 | P139: 0 | Q139: 0 | R139: 0 | S139: 0 | T139: 0 | U139: 0
A140: B | B140: 10 | C140: 04 | I140: FONDO DE CONTINGENCIAS | J140: Nación | K140: CSF | L140: 11 | M140: 247291740 | N140: 0 | O140: 247291740 | P140: 0 | Q140: 0 | R140: 0 | S140: 0 | T140: 0 | U140: 0
A141: B | B141: 10 | C141: 04 | D141: 01 | I141: APORTES AL FONDO DE CONTINGENCIAS | J141: Nación | K141: CSF | L141: 11 | M141: 247291740 | N141: 0 | O141: 247291740 | P141: 0 | Q141: 0 | R141: 0 | S141: 0 | T141: 0 | U141: 0
A142: C | I142: INVERSION | J142: Nación | K142: CSF | L142: 11 | M142: 16000000000 | N142: 14190222821 | O142: 1809777179 | P142: 10337236478 | Q142: 198172087.9 | R142: 198172087.9 | S142: 198172087.9 | T142: 0.6460772799 | U142: 0.01238575549
A143: C | I143: INVERSION | J143: Nación | K143: CSF | L143: 13 | M143: 37735679763 | N143: 23985074827 | O143: 13750604936 | P143: 15786864972 | Q143: 283682656.8 | R143: 274236329.8 | S143: 274236329.8 | T143: 0.4183537986 | U143: 0.00751762413
A144: C | I144: INVERSION | J144: Nación | K144: CSF | L144: 15 | M144: 2640000000 | N144: 1195625321 | O144: 1444374679 | P144: 621244740 | Q144: 0 | R144: 0 | S144: 0 | T144: 0.2353199773 | U144: 0
A145: C | B145: 2502 | I145: PROMOCIÓN, PROTECCIÓN Y DEFENSA DE LOS DERECHOS HUMANOS Y EL DERECHO INTERNACIONAL HUMANITARIO | J145: Nación | K145: CSF | L145: 11 | M145: 15500000000 | N145: 13853322821 | O145: 1646677179 | P145: 10128736478 | Q145: 198172087.9 | R145: 198172087.9 | S145: 198172087.9 | T145: 0.6534668695 | U145: 0.01278529599
A146: C | B146: 2502 | I146: PROMOCIÓN, PROTECCIÓN Y DEFENSA DE LOS DERECHOS HUMANOS Y EL DERECHO INTERNACIONAL HUMANITARIO | J146: Nación | K146: CSF | L146: 13 | M146: 26019181301 | N146: 23985074827 | O146: 2034106474 | P146: 15786864972 | Q146: 283682656.8 | R146: 274236329.8 | S146: 274236329.8 | T146: 0.6067394969 | U146: 0.01090282794
A147: C | B147: 2502 | I147: PROMOCIÓN, PROTECCIÓN Y DEFENSA DE LOS DERECHOS HUMANOS Y EL DERECHO INTERNACIONAL HUMANITARIO | J147: Nación | K147: CSF | L147: 15 | M147: 2640000000 | N147: 1195625321 | O147: 1444374679 | P147: 621244740 | Q147: 0 | R147: 0 | S147: 0 | T147: 0.2353199773 | U147: 0
A148: C | B148: 2502 | C148: 1000 | I148: INTERSUBSECTORIAL GOBIERNO | J148: Nación | K148: CSF | L148: 11 | M148: 15500000000 | N148: 13853322821 | O148: 1646677179 | P148: 10128736478 | Q148: 198172087.9 | R148: 198172087.9 | S148: 198172087.9 | T148: 0.6534668695 | U148: 0.01278529599
A149: C | B149: 2502 | C149: 1000 | I149: INTERSUBSECTORIAL GOBIERNO | J149: Nación | K149: CSF | L149: 13 | M149: 26019181301 | N149: 23985074827 | O149: 2034106474 | P149: 15786864972 | Q149: 283682656.8 | R149: 274236329.8 | S149: 274236329.8 | T149: 0.6067394969 | U149: 0.01090282794
A150: C | B150: 2502 | C150: 1000 | I150: INTERSUBSECTORIAL GOBIERNO | J150: Nación | K150: CSF | L150: 15 | M150: 2640000000 | N150: 1195625321 | O150: 1444374679 | P150: 621244740 | Q150: 0 | R150: 0 | S150: 0 | T150: 0.2353199773 | U150: 0
A151: C | B151: 2502 | C151: 1000 | D151: 25 | I151: FORTALECIMIENTO DE LA ATENCIÓN, PROMOCIÓN, DIVULGACIÓN, PROTECCIÓN Y DEFENSA DE DERECHOS HUMANOS A LA POBLACIÓN Y GRUPOS DE INTERÉS EN EL TERRITORIO NACIONAL NACIONAL | J151: Nación | K151: CSF | L151: 11 | M151: 10500000000 | N151: 10269199998 | O151: 230800002 | P151: 7402833109 | Q151: 181857655.9 | R151: 181857655.9 | S151: 181857655.9 | T151: 0.7050317247 | U151: 0.01731977675
A152: C | B152: 2502 | C152: 1000 | D152: 25 | I152: FORTALECIMIENTO DE LA ATENCIÓN, PROMOCIÓN, DIVULGACIÓN, PROTECCIÓN Y DEFENSA DE DERECHOS HUMANOS A LA POBLACIÓN Y GRUPOS DE INTERÉS EN EL TERRITORIO NACIONAL NACIONAL | J152: Nación | K152: CSF | L152: 13 | M152: 10500000000 | N152: 9731042252 | O152: 768957748 | P152: 6023896297 | Q152: 59317319.76 | R152: 59317319.76 | S152: 59317319.76 | T152: 0.5737044092 | U152: 0.005649268549
A153: C | B153: 2502 | C153: 1000 | D153: 25 | I153: FORTALECIMIENTO DE LA ATENCIÓN, PROMOCIÓN, DIVULGACIÓN, PROTECCIÓN Y DEFENSA DE DERECHOS HUMANOS A LA POBLACIÓN Y GRUPOS DE INTERÉS EN EL TERRITORIO NACIONAL NACIONAL | J153: Nación | K153: CSF | L153: 15 | M153: 2640000000 | N153: 1195625321 | O153: 1444374679 | P153: 621244740 | Q153: 0 | R153: 0 | S153: 0 | T153: 0.2353199773 | U153: 0
A154: C | B154: 2502 | C154: 1000 | D154: 25 | E154: 0 | F154: 2502002 | I154: SERVICIO DE ASISTENCIA TÉCNICA PARA ATENCIÓN, ORIENTACIÓN Y ASESORÍA EN MATERIA DE DERECHOS HUMANOS, EL DERECHO INTERNACIONAL HUMANITARIO Y EN ESCENARIOS DE PAZ | J154: Nación | K154: CSF | L154: 11 | M154: 4335026770 | N154: 4217226770 | O154: 117800000.5 | P154: 2424669028 | Q154: 70269150 | R154: 70269150 | S154: 70269150 | T154: 0.5593204278 | U154: 0.01620962308
A155: C | B155: 2502 | C155: 1000 | D155: 25 | E155: 0 | F155: 2502003 | I155: SERVICIO DE EDUCACIÓN INFORMAL EN MATERIA DE DERECHOS HUMANOS Y DERECHO INTERNACIONAL HUMANITARIO | J155: Nación | K155: CSF | L155: 11 | M155: 1796418873 | N155: 1764918873 | O155: 31500000.48 | P155: 1388856650 | Q155: 13561174 | R155: 13561174 | S155: 13561174 | T155: 0.7731251717 | U155: 0.007549004411
A156: C | B156: 2502 | C156: 1000 | D156: 25 | E156: 0 | F156: 2502004 | I156: SERVICIO DE DIVULGACIÓN DE LOS DERECHOS HUMANOS Y DEL DERECHO INTERNACIONAL HUMANITARIO DE LA POBLACIÓN | J156: Nación | K156: CSF | L156: 11 | M156: 655805936.2 | N156: 655805936 | O156: 0.17 | P156: 418805936 | Q156: 9399999 | R156: 9399999 | S156: 9399999 | T156: 0.6386126031 | U156: 0.01433350704
A157: C | B157: 2502 | C157: 1000 | D157: 25 | E157: 0 | F157: 2502011 | I157: DOCUMENTOS DE SEGUIMIENTO | J157: Nación | K157: CSF | L157: 11 | M157: 2927069486 | N157: 2845569485 | O157: 81500000.85 | P157: 2486501495 | Q157: 73494000 | R157: 73494000 | S157: 73494000 | T157: 0.8494849565 | U157: 0.02510838925
A158: C | B158: 2502 | C158: 1000 | D158: 25 | E158: 0 | F158: 2502006 | I158: DOCUMENTOS DE INVESTIGACIÓN | J158: Nación | K158: CSF | L158: 11 | M158: 785678934 | N158: 785678934 | O158: 0.01 | P158: 684000000 | Q158: 15133332.9 | R158: 15133332.9 | S158: 15133332.9 | T158: 0.8705846248 | U158: 0.01926147214
A159: C | B159: 2502 | C159: 1000 | D159: 25 | E159: 0 | F159: 2502006 | I159: DOCUMENTOS DE INVESTIGACIÓN | J159: Nación | K159: CSF | L159: 13 | M159: 1285678934 | N159: 1285678934 | O159: 0.01 | P159: 765507886 | Q159: 6533333 | R159: 6533333 | S159: 6533333 | T159: 0.5954113937 | U159: 0.005081620945
A160: C | B160: 2502 | C160: 1000 | D160: 25 | E160: 0 | F160: 2502011 | I160: DOCUMENTOS DE SEGUIMIENTO | J160: Nación | K160: CSF | L160: 13 | M160: 2927069486 | N160: 2811569485 | O160: 115500000.8 | P160: 1617830062 | Q160: 38123669.76 | R160: 38123669.76 | S160: 38123669.76 | T160: 0.5527132409 | U160: 0.01302451819
A161: C | B161: 2502 | C161: 1000 | D161: 25 | E161: 0 | F161: 2502004 | I161: SERVICIO DE DIVULGACIÓN DE LOS DERECHOS HUMANOS Y DEL DERECHO INTERNACIONAL HUMANITARIO DE LA POBLACIÓN | J161: Nación | K161: CSF | L161: 13 | M161: 655805936.2 | N161: 599508936 | O161: 56297000.17 | P161: 450216601 | Q161: 3800000 | R161: 3800000 | S161: 3800000 | T161: 0.6865088835 | U161: 0.005794397078
A162: C | B162: 2502 | C162: 1000 | D162: 25 | E162: 0 | F162: 2502003 | I162: SERVICIO DE EDUCACIÓN INFORMAL EN MATERIA DE DERECHOS HUMANOS Y DERECHO INTERNACIONAL HUMANITARIO | J162: Nación | K162: CSF | L162: 13 | M162: 1796418873 | N162: 1776418873 | O162: 20000000.48 | P162: 1153834965 | Q162: 5715055 | R162: 5715055 | S162: 5715055 | T162: 0.6422972849 | U162: 0.003181359918
A163: C | B163: 2502 | C163: 1000 | D163: 25 | E163: 0 | F163: 2502002 | I163: SERVICIO DE ASISTENCIA TÉCNICA PARA ATENCIÓN, ORIENTACIÓN Y ASESORÍA EN MATERIA DE DERECHOS HUMANOS, EL DERECHO INTERNACIONAL HUMANITARIO Y EN ESCENARIOS DE PAZ | J163: Nación | K163: CSF | L163: 13 | M163: 3835026770 | N163: 3257866024 | O163: 577160746.5 | P163: 2036506783 | Q163: 5145262 | R163: 5145262 | S163: 5145262 | T163: 0.5310280488 | U163: 0.001341649565
A164: C | B164: 2502 | C164: 1000 | D164: 25 | E164: 0 | F164: 2502002 | I164: SERVICIO DE ASISTENCIA TÉCNICA PARA ATENCIÓN, ORIENTACIÓN Y ASESORÍA EN MATERIA DE DERECHOS HUMANOS, EL DERECHO INTERNACIONAL HUMANITARIO Y EN ESCENARIOS DE PAZ | J164: Nación | K164: CSF | L164: 15 | M164: 289949588 | N164: 0 | O164: 289949588 | P164: 0 | Q164: 0 | R164: 0 | S164: 0 | T164: 0 | U164: 0
A165: C | B165: 2502 | C165: 1000 | D165: 25 | E165: 0 | F165: 2502003 | I165: SERVICIO DE EDUCACIÓN INFORMAL EN MATERIA DE DERECHOS HUMANOS Y DERECHO INTERNACIONAL HUMANITARIO | J165: Nación | K165: CSF | L165: 15 | M165: 871671031 | N165: 776601438 | O165: 95069593.05 | P165: 460628461 | Q165: 0 | R165: 0 | S165: 0 | T165: 0.5284430073 | U165: 0
A166: C | B166: 2502 | C166: 1000 | D166: 25 | E166: 0 | F166: 2502004 | I166: SERVICIO DE DIVULGACIÓN DE LOS DERECHOS HUMANOS Y DEL DERECHO INTERNACIONAL HUMANITARIO DE LA POBLACIÓN | J166: Nación | K166: CSF | L166: 15 | M166: 564888349.7 | N166: 202235350 | O166: 362652999.7 | P166: 143616279 | Q166: 0 | R166: 0 | S166: 0 | T166: =+IFERROR(P166/M166,0) -> 0.2542383448 | U166: =+IFERROR(Q166/M166,0) -> 0
A167: C | B167: 2502 | C167: 1000 | D167: 25 | E167: 0 | F167: 2502011 | I167: DOCUMENTOS DE SEGUIMIENTO | J167: Nación | K167: CSF | L167: 15 | M167: 715948899.3 | N167: 22698901 | O167: 693249998.3 | P167: 0 | Q167: 0 | R167: 0 | S167: 0 | T167: 0 | U167: 0
A168: C | B168: 2502 | C168: 1000 | D168: 25 | E168: 0 | F168: 2502006 | I168: DOCUMENTOS DE INVESTIGACIÓN | J168: Nación | K168: CSF | L168: 15 | M168: 197542132 | N168: 194089632 | O168: 3452499.98 | P168: 17000000 | Q168: 0 | R168: 0 | S168: 0 | T168: 0.086057591 | U168: 0
A169: C | B169: 2502 | C169: 1000 | D169: 25 | E169: 0 | F169: 2502002 | G169: 02 | I169: ADQUISICIÓN DE BIENES Y SERVICIOS - SERVICIO DE ASISTENCIA TÉCNICA PARA ATENCIÓN, ORIENTACIÓN Y ASESORÍA EN MATERIA DE DERECHOS HUMANOS, EL DERECHO INTERNACIONAL HUMANITARIO Y EN ESCENARIOS DE PAZ - FORTALECIMIENTO DE LA ATENCIÓN, PROMOCIÓN, DIVULGAC | J169: Nación | K169: CSF | L169: 11 | M169: 4335026770 | N169: 4217226770 | O169: 117800000.5 | P169: 2424669028 | Q169: 70269150 | R169: 70269150 | S169: 70269150 | T169: 0.5593204278 | U169: 0.01620962308
A170: C | B170: 2502 | C170: 1000 | D170: 25 | E170: 0 | F170: 2502011 | G170: 02 | I170: ADQUISICIÓN DE BIENES Y SERVICIOS - DOCUMENTOS DE SEGUIMIENTO - FORTALECIMIENTO DE LA ATENCIÓN, PROMOCIÓN, DIVULGACIÓN, PROTECCIÓN Y DEFENSA DE DERECHOS HUMANOS A LA POBLACIÓN Y GRUPOS DE INTERÉS EN EL TERRITORIO NACIONAL NACIONAL | J170: Nación | K170: CSF | L170: 11 | M170: 2927069486 | N170: 2845569485 | O170: 81500000.85 | P170: 2486501495 | Q170: 73494000 | R170: 73494000 | S170: 73494000 | T170: 0.8494849565 | U170: 0.02510838925
A171: C | B171: 2502 | C171: 1000 | D171: 25 | E171: 0 | F171: 2502003 | G171: 02 | I171: ADQUISICIÓN DE BIENES Y SERVICIOS - SERVICIO DE EDUCACIÓN INFORMAL EN MATERIA DE DERECHOS HUMANOS Y DERECHO INTERNACIONAL HUMANITARIO - FORTALECIMIENTO DE LA ATENCIÓN, PROMOCIÓN, DIVULGACIÓN, PROTECCIÓN Y DEFENSA DE DERECHOS HUMANOS A LA POBLACIÓN Y | J171: Nación | K171: CSF | L171: 11 | M171: 1796418873 | N171: 1764918873 | O171: 31500000.48 | P171: 1388856650 | Q171: 13561174 | R171: 13561174 | S171: 13561174 | T171: 0.7731251717 | U171: 0.007549004411
A172: C | B172: 2502 | C172: 1000 | D172: 25 | E172: 0 | F172: 2502004 | G172: 02 | I172: ADQUISICIÓN DE BIENES Y SERVICIOS - SERVICIO DE DIVULGACIÓN DE LOS DERECHOS HUMANOS Y DEL DERECHO INTERNACIONAL HUMANITARIO DE LA POBLACIÓN - FORTALECIMIENTO DE LA ATENCIÓN, PROMOCIÓN, DIVULGACIÓN, PROTECCIÓN Y DEFENSA DE DERECHOS HUMANOS A LA POBLAC | J172: Nación | K172: CSF | L172: 11 | M172: 655805936.2 | N172: 655805936 | O172: 0.17 | P172: 418805936 | Q172: 9399999 | R172: 9399999 | S172: 9399999 | T172: 0.6386126031 | U172: 0.01433350704
A173: C | B173: 2502 | C173: 1000 | D173: 25 | E173: 0 | F173: 2502006 | G173: 02 | I173: ADQUISICIÓN DE BIENES Y SERVICIOS - DOCUMENTOS DE INVESTIGACIÓN - FORTALECIMIENTO DE LA ATENCIÓN, PROMOCIÓN, DIVULGACIÓN, PROTECCIÓN Y DEFENSA DE DERECHOS HUMANOS A LA POBLACIÓN Y GRUPOS DE INTERÉS EN EL TERRITORIO NACIONAL NACIONAL | J173: Nación | K173: CSF | L173: 11 | M173: 785678934 | N173: 785678934 | O173: 0.01 | P173: 684000000 | Q173: 15133332.9 | R173: 15133332.9 | S173: 15133332.9 | T173: 0.8705846248 | U173: 0.01926147214
A174: C | B174: 2502 | C174: 1000 | D174: 25 | E174: 0 | F174: 2502006 | G174: 02 | I174: ADQUISICIÓN DE BIENES Y SERVICIOS - DOCUMENTOS DE INVESTIGACIÓN - FORTALECIMIENTO DE LA ATENCIÓN, PROMOCIÓN, DIVULGACIÓN, PROTECCIÓN Y DEFENSA DE DERECHOS HUMANOS A LA POBLACIÓN Y GRUPOS DE INTERÉS EN EL TERRITORIO NACIONAL NACIONAL | J174: Nación | K174: CSF | L174: 13 | M174: 1285678934 | N174: 1285678934 | O174: 0.01 | P174: 765507886 | Q174: 6533333 | R174: 6533333 | S174: 6533333 | T174: 0.5954113937 | U174: 0.005081620945
A175: C | B175: 2502 | C175: 1000 | D175: 25 | E175: 0 | F175: 2502004 | G175: 02 | I175: ADQUISICIÓN DE BIENES Y SERVICIOS - SERVICIO DE DIVULGACIÓN DE LOS DERECHOS HUMANOS Y DEL DERECHO INTERNACIONAL HUMANITARIO DE LA POBLACIÓN - FORTALECIMIENTO DE LA ATENCIÓN, PROMOCIÓN, DIVULGACIÓN, PROTECCIÓN Y DEFENSA DE DERECHOS HUMANOS A LA POBLAC | J175: Nación | K175: CSF | L175: 13 | M175: 655805936.2 | N175: 599508936 | O175: 56297000.17 | P175: 450216601 | Q175: 3800000 | R175: 3800000 | S175: 3800000 | T175: 0.6865088835 | U175: 0.005794397078
A176: C | B176: 2502 | C176: 1000 | D176: 25 | E176: 0 | F176: 2502003 | G176: 02 | I176: ADQUISICIÓN DE BIENES Y SERVICIOS - SERVICIO DE EDUCACIÓN INFORMAL EN MATERIA DE DERECHOS HUMANOS Y DERECHO INTERNACIONAL HUMANITARIO - FORTALECIMIENTO DE LA ATENCIÓN, PROMOCIÓN, DIVULGACIÓN, PROTECCIÓN Y DEFENSA DE DERECHOS HUMANOS A LA POBLACIÓN Y | J176: Nación | K176: CSF | L176: 13 | M176: 1796418873 | N176: 1776418873 | O176: 20000000.48 | P176: 1153834965 | Q176: 5715055 | R176: 5715055 | S176: 5715055 | T176: 0.6422972849 | U176: 0.003181359918
A177: C | B177: 2502 | C177: 1000 | D177: 25 | E177: 0 | F177: 2502011 | G177: 02 | I177: ADQUISICIÓN DE BIENES Y SERVICIOS - DOCUMENTOS DE SEGUIMIENTO - FORTALECIMIENTO DE LA ATENCIÓN, PROMOCIÓN, DIVULGACIÓN, PROTECCIÓN Y DEFENSA DE DERECHOS HUMANOS A LA POBLACIÓN Y GRUPOS DE INTERÉS EN EL TERRITORIO NACIONAL NACIONAL | J177: Nación | K177: CSF | L177: 13 | M177: 2927069486 | N177: 2811569485 | O177: 115500000.8 | P177: 1617830062 | Q177: 38123669.76 | R177: 38123669.76 | S177: 38123669.76 | T177: 0.5527132409 | U177: 0.01302451819
A178: C | B178: 2502 | C178: 1000 | D178: 25 | E178: 0 | F178: 2502002 | G178: 02 | I178: ADQUISICIÓN DE BIENES Y SERVICIOS - SERVICIO DE ASISTENCIA TÉCNICA PARA ATENCIÓN, ORIENTACIÓN Y ASESORÍA EN MATERIA DE DERECHOS HUMANOS, EL DERECHO INTERNACIONAL HUMANITARIO Y EN ESCENARIOS DE PAZ - FORTALECIMIENTO DE LA ATENCIÓN, PROMOCIÓN, DIVULGAC | J178: Nación | K178: CSF | L178: 13 | M178: 3835026770 | N178: 3257866024 | O178: 577160746.5 | P178: 2036506783 | Q178: 5145262 | R178: 5145262 | S178: 5145262 | T178: 0.5310280488 | U178: 0.001341649565
A179: C | B179: 2502 | C179: 1000 | D179: 25 | E179: 0 | F179: 2502002 | G179: 02 | I179: ADQUISICIÓN DE BIENES Y SERVICIOS - SERVICIO DE ASISTENCIA TÉCNICA PARA ATENCIÓN, ORIENTACIÓN Y ASESORÍA EN MATERIA DE DERECHOS HUMANOS, EL DERECHO INTERNACIONAL HUMANITARIO Y EN ESCENARIOS DE PAZ - FORTALECIMIENTO DE LA ATENCIÓN, PROMOCIÓN, DIVULGAC | J179: Nación | K179: CSF | L179: 15 | M179: 289949588 | N179: 0 | O179: 289949588 | P179: 0 | Q179: 0 | R179: 0 | S179: 0 | T179: 0 | U179: 0
A180: C | B180: 2502 | C180: 1000 | D180: 25 | E180: 0 | F180: 2502011 | G180: 02 | I180: ADQUISICIÓN DE BIENES Y SERVICIOS - DOCUMENTOS DE SEGUIMIENTO - FORTALECIMIENTO DE LA ATENCIÓN, PROMOCIÓN, DIVULGACIÓN, PROTECCIÓN Y DEFENSA DE DERECHOS HUMANOS A LA POBLACIÓN Y GRUPOS DE INTERÉS EN EL TERRITORIO NACIONAL NACIONAL | J180: Nación | K180: CSF | L180: 15 | M180: 715948899.3 | N180: 22698901 | O180: 693249998.3 | P180: 0 | Q180: 0 | R180: 0 | S180: 0 | T180: 0 | U180: 0
A181: C | B181: 2502 | C181: 1000 | D181: 25 | E181: 0 | F181: 2502003 | G181: 02 | I181: ADQUISICIÓN DE BIENES Y SERVICIOS - SERVICIO DE EDUCACIÓN INFORMAL EN MATERIA DE DERECHOS HUMANOS Y DERECHO INTERNACIONAL HUMANITARIO - FORTALECIMIENTO DE LA ATENCIÓN, PROMOCIÓN, DIVULGACIÓN, PROTECCIÓN Y DEFENSA DE DERECHOS HUMANOS A LA POBLACIÓN Y | J181: Nación | K181: CSF | L181: 15 | M181: 871671031 | N181: 776601438 | O181: 95069593.05 | P181: 460628461 | Q181: 0 | R181: 0 | S181: 0 | T181: 0.5284430073 | U181: 0
A182: C | B182: 2502 | C182: 1000 | D182: 25 | E182: 0 | F182: 2502004 | G182: 02 | I182: ADQUISICIÓN DE BIENES Y SERVICIOS - SERVICIO DE DIVULGACIÓN DE LOS DERECHOS HUMANOS Y DEL DERECHO INTERNACIONAL HUMANITARIO DE LA POBLACIÓN - FORTALECIMIENTO DE LA ATENCIÓN, PROMOCIÓN, DIVULGACIÓN, PROTECCIÓN Y DEFENSA DE DERECHOS HUMANOS A LA POBLAC | J182: Nación | K182: CSF | L182: 15 | M182: 564888349.7 | N182: 202235350 | O182: 362652999.7 | P182: 143616279 | Q182: 0 | R182: 0 | S182: 0 | T182: 0.2542383448 | U182: 0
A183: C | B183: 2502 | C183: 1000 | D183: 25 | E183: 0 | F183: 2502006 | G183: 02 | I183: ADQUISICIÓN DE BIENES Y SERVICIOS - DOCUMENTOS DE INVESTIGACIÓN - FORTALECIMIENTO DE LA ATENCIÓN, PROMOCIÓN, DIVULGACIÓN, PROTECCIÓN Y DEFENSA DE DERECHOS HUMANOS A LA POBLACIÓN Y GRUPOS DE INTERÉS EN EL TERRITORIO NACIONAL NACIONAL | J183: Nación | K183: CSF | L183: 15 | M183: 197542132 | N183: 194089632 | O183: 3452499.98 | P183: 17000000 | Q183: 0 | R183: 0 | S183: 0 | T183: 0.086057591 | U183: 0
A184: C | B184: 2502 | C184: 1000 | D184: 25 | E184: 0 | I184: FORTALECIMIENTO DE LA ATENCIÓN, PROMOCIÓN, DIVULGACIÓN, PROTECCIÓN Y DEFENSA DE DERECHOS HUMANOS A LA POBLACIÓN Y GRUPOS DE INTERÉS EN EL TERRITORIO NACIONAL NACIONAL | J184: Nación | K184: CSF | L184: 11 | M184: 10500000000 | N184: 10269199998 | O184: 230800002 | P184: 7402833109 | Q184: 181857655.9 | R184: 181857655.9 | S184: 181857655.9 | T184: 0.7050317247 | U184: 0.01731977675
A185: C | B185: 2502 | C185: 1000 | D185: 25 | E185: 0 | I185: FORTALECIMIENTO DE LA ATENCIÓN, PROMOCIÓN, DIVULGACIÓN, PROTECCIÓN Y DEFENSA DE DERECHOS HUMANOS A LA POBLACIÓN Y GRUPOS DE INTERÉS EN EL TERRITORIO NACIONAL NACIONAL | J185: Nación | K185: CSF | L185: 13 | M185: 10500000000 | N185: 9731042252 | O185: 768957748 | P185: 6023896297 | Q185: 59317319.76 | R185: 59317319.76 | S185: 59317319.76 | T185: 0.5737044092 | U185: 0.005649268549
A186: C | B186: 2502 | C186: 1000 | D186: 25 | E186: 0 | I186: FORTALECIMIENTO DE LA ATENCIÓN, PROMOCIÓN, DIVULGACIÓN, PROTECCIÓN Y DEFENSA DE DERECHOS HUMANOS A LA POBLACIÓN Y GRUPOS DE INTERÉS EN EL TERRITORIO NACIONAL NACIONAL | J186: Nación | K186: CSF | L186: 15 | M186: 2640000000 | N186: 1195625321 | O186: 1444374679 | P186: 621244740 | Q186: 0 | R186: 0 | S186: 0 | T186: 0.2353199773 | U186: 0
A187: C | B187: 2502 | C187: 1000 | D187: 27 | E187: 0 | I187: CONTRIBUCION EN LA CONSTRUCCION DE CIUDADANIA DE LA VICTIMAS DEL CONFLICTO ARMADO NACIONAL | J187: Nación | K187: CSF | L187: 11 | M187: 5000000000 | N187: 3584122823 | O187: 1415877177 | P187: 2725903369 | Q187: 16314432 | R187: 16314432 | S187: 16314432 | T187: 0.5451806738 | U187: 0.0032628864
A188: C | B188: 2502 | C188: 1000 | D188: 27 | E188: 0 | F188: 2502001 | I188: SERVICIO DE ADVERTENCIA Y SEGUIMIENTO A LOS RIESGOS DE VULNERACIÓN DE LOS DERECHOS HUMANOS, EL DERECHO INTERNACIONAL HUMANITARIO Y EN LOS ESCENARIOS DE PAZ | J188: Nación | K188: CSF | L188: 11 | M188: 1699633877 | N188: 891448416 | O188: 808185461.4 | P188: 483693790 | Q188: 1268195 | R188: 1268195 | S188: 1268195 | T188: 0.2845870493 | U188: 0.000746157756
A189: C | B189: 2502 | C189: 1000 | D189: 27 | E189: 0 | F189: 2502002 | I189: SERVICIO DE ASISTENCIA TÉCNICA PARA ATENCIÓN, ORIENTACIÓN Y ASESORÍA EN MATERIA DE DERECHOS HUMANOS, EL DERECHO INTERNACIONAL HUMANITARIO Y EN ESCENARIOS DE PAZ | J189: Nación | K189: CSF | L189: 11 | M189: 2196579406 | N189: 2182579406 | O189: 14000000.3 | P189: 1862362488 | Q189: 8751619 | R189: 8751619 | S189: 8751619 | T189: 0.8478466486 | U189: 0.003984203337
A190: C | B190: 2502 | C190: 1000 | D190: 27 | E190: 0 | F190: 2502003 | I190: SERVICIO DE EDUCACIÓN INFORMAL EN MATERIA DE DERECHOS HUMANOS Y DERECHO INTERNACIONAL HUMANITARIO | J190: Nación | K190: CSF | L190: 11 | M190: 1103786716 | N190: 510095001 | O190: 593691715.3 | P190: 379847091 | Q190: 6294618 | R190: 6294618 | S190: 6294618 | T190: 0.3441308773 | U190: 0.005702748463
A191: C | B191: 2502 | C191: 1000 | D191: 27 | E191: 0 | F191: 2502003 | I191: SERVICIO DE EDUCACIÓN INFORMAL EN MATERIA DE DERECHOS HUMANOS Y DERECHO INTERNACIONAL HUMANITARIO | J191: Nación | K191: CSF | L191: 13 | M191: 3425973234 | N191: 2909815739 | O191: 516157494.7 | P191: 1690442734 | Q191: 13236986 | R191: 13236986 | S191: 13236986 | T191: 0.4934197143 | U191: 0.003863715533
A192: C | B192: 2502 | C192: 1000 | D192: 27 | E192: 0 | F192: 2502002 | I192: SERVICIO DE ASISTENCIA TÉCNICA PARA ATENCIÓN, ORIENTACIÓN Y ASESORÍA EN MATERIA DE DERECHOS HUMANOS, EL DERECHO INTERNACIONAL HUMANITARIO Y EN ESCENARIOS DE PAZ | J192: Nación | K192: CSF | L192: 13 | M192: 6817822810 | N192: 6174697699 | O192: 643125110.7 | P192: 4386698719 | Q192: 135354590 | R192: 130461257 | S192: 130461257 | T192: 0.6434163576 | U192: 0.01985305189
A193: C | B193: 2502 | C193: 1000 | D193: 27 | E193: 0 | F193: 2502001 | I193: SERVICIO DE ADVERTENCIA Y SEGUIMIENTO A LOS RIESGOS DE VULNERACIÓN DE LOS DERECHOS HUMANOS, EL DERECHO INTERNACIONAL HUMANITARIO Y EN LOS ESCENARIOS DE PAZ | J193: Nación | K193: CSF | L193: 13 | M193: 5275385258 | N193: 5169519137 | O193: 105866120.6 | P193: 3685827222 | Q193: 75773761 | R193: 71220767 | S193: 71220767 | T193: 0.6986839903 | U193: 0.01436364499
A194: C | B194: 2502 | C194: 1000 | D194: 27 | E194: 0 | I194: CONTRIBUCION EN LA CONSTRUCCION DE CIUDADANIA DE LA VICTIMAS DEL CONFLICTO ARMADO NACIONAL | J194: Nación | K194: CSF | L194: 13 | M194: 15519181301 | N194: 14254032575 | O194: 1265148726 | P194: 9762968675 | Q194: 224365337 | R194: 214919010 | S194: 214919010 | T194: 0.6290904453 | U194: 0.01445729209
A195: C | B195: 2502 | C195: 1000 | D195: 27 | E195: 0 | F195: 2502001 | G195: 02 | I195: ADQUISICIÓN DE BIENES Y SERVICIOS - SERVICIO DE ADVERTENCIA Y SEGUIMIENTO A LOS RIESGOS DE VULNERACIÓN DE LOS DERECHOS HUMANOS, EL DERECHO INTERNACIONAL HUMANITARIO Y EN LOS ESCENARIOS DE PAZ - CONTRIBUCION EN LA CONSTRUCCION DE CIUDADANIA DE LA VI | J195: Nación | K195: CSF | L195: 11 | M195: 1699633877 | N195: 891448416 | O195: 808185461.4 | P195: 483693790 | Q195: 1268195 | R195: 1268195 | S195: 1268195 | T195: 0.2845870493 | U195: 0.000746157756
A196: C | B196: 2502 | C196: 1000 | D196: 27 | E196: 0 | F196: 2502002 | G196: 02 | I196: ADQUISICIÓN DE BIENES Y SERVICIOS - SERVICIO DE ASISTENCIA TÉCNICA PARA ATENCIÓN, ORIENTACIÓN Y ASESORÍA EN MATERIA DE DERECHOS HUMANOS, EL DERECHO INTERNACIONAL HUMANITARIO Y EN ESCENARIOS DE PAZ - CONTRIBUCION EN LA CONSTRUCCION DE CIUDADANIA DE | J196: Nación | K196: CSF | L196: 11 | M196: 2196579406 | N196: 2182579406 | O196: 14000000.3 | P196: 1862362488 | Q196: 8751619 | R196: 8751619 | S196: 8751619 | T196: 0.8478466486 | U196: 0.003984203337
A197: C | B197: 2502 | C197: 1000 | D197: 27 | E197: 0 | F197: 2502003 | G197: 02 | I197: ADQUISICIÓN DE BIENES Y SERVICIOS - SERVICIO DE EDUCACIÓN INFORMAL EN MATERIA DE DERECHOS HUMANOS Y DERECHO INTERNACIONAL HUMANITARIO - CONTRIBUCION EN LA CONSTRUCCION DE CIUDADANIA DE LA VICTIMAS DEL CONFLICTO ARMADO NACIONAL | J197: Nación | K197: CSF | L197: 11 | M197: 1103786716 | N197: 510095001 | O197: 593691715.3 | P197: 379847091 | Q197: 6294618 | R197: 6294618 | S197: 6294618 | T197: 0.3441308773 | U197: 0.005702748463
A198: C | B198: 2502 | C198: 1000 | D198: 27 | E198: 0 | F198: 2502003 | G198: 02 | I198: ADQUISICIÓN DE BIENES Y SERVICIOS - SERVICIO DE EDUCACIÓN INFORMAL EN MATERIA DE DERECHOS HUMANOS Y DERECHO INTERNACIONAL HUMANITARIO - CONTRIBUCION EN LA CONSTRUCCION DE CIUDADANIA DE LA VICTIMAS DEL CONFLICTO ARMADO NACIONAL | J198: Nación | K198: CSF | L198: 13 | M198: 3425973234 | N198: 2909815739 | O198: 516157494.7 | P198: 1690442734 | Q198: 13236986 | R198: 13236986 | S198: 13236986 | T198: 0.4934197143 | U198: 0.003863715533
A199: C | B199: 2502 | C199: 1000 | D199: 27 | E199: 0 | F199: 2502002 | G199: 02 | I199: ADQUISICIÓN DE BIENES Y SERVICIOS - SERVICIO DE ASISTENCIA TÉCNICA PARA ATENCIÓN, ORIENTACIÓN Y ASESORÍA EN MATERIA DE DERECHOS HUMANOS, EL DERECHO INTERNACIONAL HUMANITARIO Y EN ESCENARIOS DE PAZ - CONTRIBUCION EN LA CONSTRUCCION DE CIUDADANIA DE | J199: Nación | K199: CSF | L199: 13 | M199: 6817822810 | N199: 6174697699 | O199: 643125110.7 | P199: 4386698719 | Q199: 135354590 | R199: 130461257 | S199: 130461257 | T199: 0.6434163576 | U199: 0.01985305189
A200: C | B200: 2502 | C200: 1000 | D200: 27 | E200: 0 | F200: 2502001 | G200: 02 | I200: ADQUISICIÓN DE BIENES Y SERVICIOS - SERVICIO DE ADVERTENCIA Y SEGUIMIENTO A LOS RIESGOS DE VULNERACIÓN DE LOS DERECHOS HUMANOS, EL DERECHO INTERNACIONAL HUMANITARIO Y EN LOS ESCENARIOS DE PAZ - CONTRIBUCION EN LA CONSTRUCCION DE CIUDADANIA DE LA VI | J200: Nación | K200: CSF | L200: 13 | M200: 5275385258 | N200: 5169519137 | O200: 105866120.6 | P200: 3685827222 | Q200: 75773761 | R200: 71220767 | S200: 71220767 | T200: 0.6986839903 | U200: 0.01436364499
A201: C | B201: 2502 | C201: 1000 | D201: 27 | I201: CONTRIBUCION EN LA CONSTRUCCION DE CIUDADANIA DE LA VICTIMAS DEL CONFLICTO ARMADO NACIONAL | J201: Nación | K201: CSF | L201: 11 | M201: 5000000000 | N201: 3584122823 | O201: 1415877177 | P201: 2725903369 | Q201: 16314432 | R201: 16314432 | S201: 16314432 | T201: 0.5451806738 | U201: 0.0032628864
A202: C | B202: 2502 | C202: 1000 | D202: 27 | I202: CONTRIBUCION EN LA CONSTRUCCION DE CIUDADANIA DE LA VICTIMAS DEL CONFLICTO ARMADO NACIONAL | J202: Nación | K202: CSF | L202: 13 | M202: 15519181301 | N202: 14254032575 | O202: 1265148726 | P202: 9762968675 | Q202: 224365337 | R202: 214919010 | S202: 214919010 | T202: 0.6290904453 | U202: 0.01445729209
A203: C | B203: 2599 | I203: FORTALECIMIENTO DE LA GESTIÓN Y DIRECCIÓN DEL SECTOR ORGANISMOS DE CONTROL | J203: Nación | K203: CSF | L203: 11 | M203: 500000000 | N203: 336900000 | O203: 163100000 | P203: 208500000 | Q203: 0 | R203: 0 | S203: 0 | T203: 0.417 | U203: 0
A204: C | B204: 2599 | I204: FORTALECIMIENTO DE LA GESTIÓN Y DIRECCIÓN DEL SECTOR ORGANISMOS DE CONTROL | J204: Nación | K204: CSF | L204: 13 | M204: 11716498462 | N204: 0 | O204: 11716498462 | P204: 0 | Q204: 0 | R204: 0 | S204: 0 | T204: 0 | U204: 0
A205: C | B205: 2599 | C205: 1000 | I205: INTERSUBSECTORIAL GOBIERNO | J205: Nación | K205: CSF | L205: 11 | M205: 500000000 | N205: 336900000 | O205: 163100000 | P205: 208500000 | Q205: 0 | R205: 0 | S205: 0 | T205: 0.417 | U205: 0
A206: C | B206: 2599 | C206: 1000 | I206: INTERSUBSECTORIAL GOBIERNO | J206: Nación | K206: CSF | L206: 13 | M206: 11716498462 | N206: 0 | O206: 11716498462 | P206: 0 | Q206: 0 | R206: 0 | S206: 0 | T206: 0 | U206: 0
A207: C | B207: 2599 | C207: 1000 | D207: 7 | I207: ADECUACIÓN DE LAS CONDICIONES FÍSICAS APROPIADAS PARA EL FUNCIONAMIENTO DE LAS DEFENSORÍAS DEL PUEBLO A NIVEL REGIONAL NACIONAL | J207: Nación | K207: CSF | L207: 13 | M207: 10000000000 | N207: 0 | O207: 10000000000 | P207: 0 | Q207: 0 | R207: 0 | S207: 0 | T207: 0 | U207: 0
... 43 more rows
